{"text_format":"1","workbook":"xlsx","n_sheets":5,"sheets":["REGISTRO","ESTADISTICAS1","ESTADISTICAS2","ESTADISTICAS3","ESTADISTICAS4"],"not_rendered":{"charts":0,"images":1,"macros":1,"external_links":2,"defined_names":1,"comments":1,"pivot_tables":0},"unopened":[],"bounds":{"document_bytes":16777216,"sheet_cells":100000,"rows_first":2000,"rows_last":500,"rows_between":2000,"halvings":0,"cell_chars":16384,"cell_head_chars":4096},"cells_cut":0,"cells_raw":0,"read":"whole","date_system":"1900"}

{"sheet":"REGISTRO","index":0,"n_rows":1146,"n_cols":15,"rows_kept":1146,"cut":false,"hidden":false,"merged":[[0,0,5,2],[0,3,2,6],[3,3,5,4],[3,5,5,6],[0,7,1,7],[2,7,3,7],[4,7,5,7]]}
[null,null,null,"NOMBRE\nMATRIZ ESTADISTICO DIARIO",null,null,null,"CODIGO\n10-FT-024",null,"2015-06-16","12:05:00"]
[]
[null,null,null,null,null,null,null,"VERSIÓN 2"]
[null,null,null,"TIPO DE DOCUMENTO\nFORMATO",null,"RESPONSABLE\nSISTEMAS Y TECNOLOGIA BIOMEDICA"]
[null,null,null,null,null,null,null,"FECHA VIGENCIA\n16/06/2015",null,"2015-06-16","12:05:00"]
[]
["Nº","FECHA SOLICITUD","HORA SOLICITUD","USUARIO SOLICITANTE","EQUIPO INTERVENIDO","TIPO DE INTERVENSIÓN","MEDIO DE CONTACTO","DESCRIPCIÓN INCIDENCIA","DESCRIPCIÓN SOLUCIÓN","FECHA SOLUCION","HORA SOLUCION","TIEMPO UTILIZADO","RESUMEN INCIDENCIA ATENDIDA","PRIORIDAD","INTERVENSION REALIZADA POR"]
[1,null,null,null,null,null,null,null,null,"2015-06-16","14:30:00"]
[2]
[3]
[4]
[5]
[6]
[7]
[8]
[9]
[10]
[11]
[12]
[13]
[14]
[15]
[16]
[17]
[18]
[19]
[20]
[21]
[22]
[23]
[24]
[25]
[26]
[27]
[28]
[29]
[30]
[31]
[32]
[33]
[34]
[35]
[36]
[37]
[38]
[39]
[40]
[41]
[42]
[43]
[44]
[45]
[46]
[47]
[48]
[49]
[50]
[51]
[52]
[53]
[54]
[55]
[56]
[57]
[58]
[59]
[60]
[61]
[62]
[63]
[64]
[65]
[66]
[67]
[68]
[69]
[70]
[71]
[72]
[73]
[74]
[75]
[76]
[77]
[78]
[79]
[80]
[81]
[82]
[83]
[84]
[85]
[86]
[87]
[88]
[89]
[90]
[91]
[92]
[93]
[94]
[95]
[96]
[97]
[98]
[99]
[100]
[101]
[102]
[103]
[104]
[105]
[106]
[107]
[108]
[109]
[110]
[111]
[112]
[113]
[114]
[115]
[116]
[117]
[118]
[119]
[120]
[121]
[122]
[123]
[124]
[125]
[126]
[127]
[128]
[129]
[130]
[131]
[132]
[133]
[134]
[135]
[136]
[137]
[138]
[139]
[140]
[141]
[142]
[143]
[144]
[145]
[146]
[147]
[148]
[149]
[150]
[151]
[152]
[153]
[154]
[155]
[156]
[157]
[158]
[159]
[160]
[161]
[162]
[163]
[164]
[165]
[166]
[167]
[168]
[169]
[170]
[171]
[172]
[173]
[174]
[175]
[176]
[177]
[178]
[179]
[180]
[181]
[182]
[183]
[184]
[185]
[186]
[187]
[188]
[189]
[190]
[191]
[192]
[193]
[194]
[195]
[196]
[197]
[198]
[199]
[200]
[201]
[202]
[203]
[204]
[205]
[206]
[207]
[208]
[209]
[210]
[211]
[212]
[213]
[214]
[215]
[216]
[217]
[218]
[219]
[220]
[221]
[222]
[223]
[224]
[225]
[226]
[227]
[228]
[229]
[230]
[231]
[232]
[233]
[234]
[235]
[236]
[237]
[238]
[239]
[240]
[241]
[242]
[243]
[244]
[245]
[246]
[247]
[248]
[249]
[250]
[251]
[252]
[253]
[254]
[255]
[256]
[257]
[258]
[259]
[260]
[261]
[262]
[263]
[264]
[265]
[266]
[267]
[268]
[269]
[270]
[271]
[272]
[273]
[274]
[275]
[276]
[277]
[278]
[279]
[280]
[281]
[282]
[283]
[284]
[285]
[286]
[287]
[288]
[289]
[290]
[291]
[292]
[293]
[294]
[295]
[296]
[297]
[298]
[299]
[300]
[301]
[302]
[303]
[304]
[305]
[306]
[307]
[308]
[309]
[310]
[311]
[312]
[313]
[314]
[315]
[316]
[317]
[318]
[319]
[320]
[321]
[322]
[323]
[324]
[325]
[326]
[327]
[328]
[329]
[330]
[331]
[332]
[333]
[334]
[335]
[336]
[337]
[338]
[339]
[340]
[341]
[342]
[343]
[344]
[345]
[346]
[347]
[348]
[349]
[350]
[351]
[352]
[353]
[354]
[355]
[356]
[357]
[358]
[359]
[360]
[361]
[362]
[363]
[364]
[365]
[366]
[367]
[368]
[369]
[370]
[371]
[372]
[373]
[374]
[375]
[376]
[377]
[378]
[379]
[380]
[381]
[382]
[383]
[384]
[385]
[386]
[387]
[388]
[389]
[390]
[391]
[392]
[393]
[394]
[395]
[396]
[397]
[398]
[399]
[400]
[401]
[402]
[403]
[404]
[405]
[406]
[407]
[408]
[409]
[410]
[411]
[412]
[413]
[414]
[415]
[416]
[417]
[418]
[419]
[420]
[421]
[422]
[423]
[424]
[425]
[426]
[427]
[428]
[429]
[430]
[431]
[432]
[433]
[434]
[435]
[436]
[437]
[438]
[439]
[440]
[441]
[442]
[443]
[444]
[445]
[446]
[447]
[448]
[449]
[450]
[451]
[452]
[453]
[454]
[455]
[456]
[457]
[458]
[459]
[460]
[461]
[462]
[463]
[464]
[465]
[466]
[467]
[468]
[469]
[470]
[471]
[472]
[473]
[474]
[475]
[476]
[477]
[478]
[479]
[480]
[481]
[482]
[483]
[484]
[485]
[486]
[487]
[488]
[489]
[490]
[491]
[492]
[493]
[494]
[495]
[496]
[497]
[498]
[499]
[500]
[501]
[502]
[503]
[504]
[505]
[506]
[507]
[508]
[509]
[510]
[511]
[512]
[513]
[514]
[515]
[516]
[517]
[518]
[519]
[520]
[521]
[522]
[523]
[524]
[525]
[526]
[527]
[528]
[529]
[530]
[531]
[532]
[533]
[534]
[535]
[536]
[537]
[538]
[539]
[540]
[541]
[542]
[543]
[544]
[545]
[546]
[547,null,null,null,null,null,null,null,null,null,null,{"$f":"((J554+K554)-(B554+C554))","v":0},{"$f":"H554&\",\"&I554","v":","}]
[548,null,null,null,null,null,null,null,null,null,null,0,","]
[549,null,null,null,null,null,null,null,null,null,null,0,","]
[550,null,null,null,null,null,null,null,null,null,null,0,","]
[551,null,null,null,null,null,null,null,null,null,null,0,","]
[552,null,null,null,null,null,null,null,null,null,null,0,","]
[553,null,null,null,null,null,null,null,null,null,null,0,","]
[554,null,null,null,null,null,null,null,null,null,null,0,","]
[555,null,null,null,null,null,null,null,null,null,null,0,","]
[556,null,null,null,null,null,null,null,null,null,null,0,","]
[557,null,null,null,null,null,null,null,null,null,null,0,","]
[558,null,null,null,null,null,null,null,null,null,null,0,","]
[559,null,null,null,null,null,null,null,null,null,null,0,","]
[560,null,null,null,null,null,null,null,null,null,null,0,","]
[561,null,null,null,null,null,null,null,null,null,null,0,","]
[562,null,null,null,null,null,null,null,null,null,null,0,","]
[563,null,null,null,null,null,null,null,null,null,null,0,","]
[564,null,null,null,null,null,null,null,null,null,null,0,","]
[565,null,null,null,null,null,null,null,null,null,null,0,","]
[566,null,null,null,null,null,null,null,null,null,null,0,","]
[567,null,null,null,null,null,null,null,null,null,null,0,","]
[568,null,null,null,null,null,null,null,null,null,null,0,","]
[569,null,null,null,null,null,null,null,null,null,null,0,","]
[570,null,null,null,null,null,null,null,null,null,null,0,","]
[571,null,null,null,null,null,null,null,null,null,null,0,","]
[572,null,null,null,null,null,null,null,null,null,null,0,","]
[573,null,null,null,null,null,null,null,null,null,null,0,","]
[574,null,null,null,null,null,null,null,null,null,null,0,","]
[575,null,null,null,null,null,null,null,null,null,null,0,","]
[576,null,null,null,null,null,null,null,null,null,null,0,","]
[577,null,null,null,null,null,null,null,null,null,null,{"$f":"((J584+K584)-(B584+C584))","v":0},{"$f":"H584&\",\"&I584","v":","}]
[578,null,null,null,null,null,null,null,null,null,null,0,","]
[579,null,null,null,null,null,null,null,null,null,null,0,","]
[580,null,null,null,null,null,null,null,null,null,null,0,","]
[581,null,null,null,null,null,null,null,null,null,null,0,","]
[582,null,null,null,null,null,null,null,null,null,null,0,","]
[583,null,null,null,null,null,null,null,null,null,null,0,","]
[584,null,null,null,null,null,null,null,null,null,null,0,","]
[585,null,null,null,null,null,null,null,null,null,null,0,","]
[586,null,null,null,null,null,null,null,null,null,null,0,","]
[587,null,null,null,null,null,null,null,null,null,null,0,","]
[588,null,null,null,null,null,null,null,null,null,null,0,","]
[589,null,null,null,null,null,null,null,null,null,null,0,","]
[590,null,null,null,null,null,null,null,null,null,null,0,","]
[591,null,null,null,null,null,null,null,null,null,null,0,","]
[592,null,null,null,null,null,null,null,null,null,null,0,","]
[593,null,null,null,null,null,null,null,null,null,null,0,","]
[594,null,null,null,null,null,null,null,null,null,null,0,","]
[595,null,null,null,null,null,null,null,null,null,null,0,","]
[596,null,null,null,null,null,null,null,null,null,null,0,","]
[597,null,null,null,null,null,null,null,null,null,null,0,","]
[598,null,null,null,null,null,null,null,null,null,null,0,","]
[599,null,null,null,null,null,null,null,null,null,null,0,","]
[600,null,null,null,null,null,null,null,null,null,null,0,","]
[601,null,null,null,null,null,null,null,null,null,null,0,","]
[602,null,null,null,null,null,null,null,null,null,null,0,","]
[603,null,null,null,null,null,null,null,null,null,null,0,","]
[604,null,null,null,null,null,null,null,null,null,null,0,","]
[605,null,null,null,null,null,null,null,null,null,null,0,","]
[606,null,null,null,null,null,null,null,null,null,null,0,","]
[607,null,null,null,null,null,null,null,null,null,null,0,","]
[608,null,null,null,null,null,null,null,null,null,null,0,","]
[609,null,null,null,null,null,null,null,null,null,null,0,","]
[610,null,null,null,null,null,null,null,null,null,null,0,","]
[611,null,null,null,null,null,null,null,null,null,null,0,","]
[612,null,null,null,null,null,null,null,null,null,null,0,","]
[613,null,null,null,null,null,null,null,null,null,null,0,","]
[614,null,null,null,null,null,null,null,null,null,null,0,","]
[615,null,null,null,null,null,null,null,null,null,null,0,","]
[616,null,null,null,null,null,null,null,null,null,null,0,","]
[617,null,null,null,null,null,null,null,null,null,null,0,","]
[618,null,null,null,null,null,null,null,null,null,null,0,","]
[619,null,null,null,null,null,null,null,null,null,null,0,","]
[620,null,null,null,null,null,null,null,null,null,null,0,","]
[621,null,null,null,null,null,null,null,null,null,null,0,","]
[622,null,null,null,null,null,null,null,null,null,null,0,","]
[623,null,null,null,null,null,null,null,null,null,null,0,","]
[624,null,null,null,null,null,null,null,null,null,null,0,","]
[625,null,null,null,null,null,null,null,null,null,null,0,","]
[626,null,null,null,null,null,null,null,null,null,null,0,","]
[627,null,null,null,null,null,null,null,null,null,null,0,","]
[628,null,null,null,null,null,null,null,null,null,null,0,","]
[629,null,null,null,null,null,null,null,null,null,null,0,","]
[630,null,null,null,null,null,null,null,null,null,null,0,","]
[631,null,null,null,null,null,null,null,null,null,null,0,","]
[632,null,null,null,null,null,null,null,null,null,null,0,","]
[633,null,null,null,null,null,null,null,null,null,null,0,","]
[634,null,null,null,null,null,null,null,null,null,null,0,","]
[635,null,null,null,null,null,null,null,null,null,null,0,","]
[636,null,null,null,null,null,null,null,null,null,null,0,","]
[637,null,null,null,null,null,null,null,null,null,null,0,","]
[638,null,null,null,null,null,null,null,null,null,null,0,","]
[639,null,null,null,null,null,null,null,null,null,null,0,","]
[640,null,null,null,null,null,null,null,null,null,null,0,","]
[641,null,null,null,null,null,null,null,null,null,null,{"$f":"((J648+K648)-(B648+C648))","v":0},{"$f":"H648&\",\"&I648","v":","}]
[642,null,null,null,null,null,null,null,null,null,null,0,","]
[643,null,null,null,null,null,null,null,null,null,null,0,","]
[644,null,null,null,null,null,null,null,null,null,null,0,","]
[645,null,null,null,null,null,null,null,null,null,null,0,","]
[646,null,null,null,null,null,null,null,null,null,null,0,","]
[647,null,null,null,null,null,null,null,null,null,null,0,","]
[648,null,null,null,null,null,null,null,null,null,null,0,","]
[649,null,null,null,null,null,null,null,null,null,null,0,","]
[650,null,null,null,null,null,null,null,null,null,null,0,","]
[651,null,null,null,null,null,null,null,null,null,null,0,","]
[652,null,null,null,null,null,null,null,null,null,null,0,","]
[653,null,null,null,null,null,null,null,null,null,null,0,","]
[654,null,null,null,null,null,null,null,null,null,null,0,","]
[655,null,null,null,null,null,null,null,null,null,null,0,","]
[656,null,null,null,null,null,null,null,null,null,null,0,","]
[657,null,null,null,null,null,null,null,null,null,null,0,","]
[658,null,null,null,null,null,null,null,null,null,null,0,","]
[659,null,null,null,null,null,null,null,null,null,null,0,","]
[660,null,null,null,null,null,null,null,null,null,null,0,","]
[661,null,null,null,null,null,null,null,null,null,null,0,","]
[662,null,null,null,null,null,null,null,null,null,null,0,","]
[663,null,null,null,null,null,null,null,null,null,null,0,","]
[664,null,null,null,null,null,null,null,null,null,null,0,","]
[665,null,null,null,null,null,null,null,null,null,null,0,","]
[666,null,null,null,null,null,null,null,null,null,null,0,","]
[667,null,null,null,null,null,null,null,null,null,null,0,","]
[668,null,null,null,null,null,null,null,null,null,null,0,","]
[669,null,null,null,null,null,null,null,null,null,null,0,","]
[670,null,null,null,null,null,null,null,null,null,null,0,","]
[671,null,null,null,null,null,null,null,null,null,null,0,","]
[672,null,null,null,null,null,null,null,null,null,null,0,","]
[673,null,null,null,null,null,null,null,null,null,null,0,","]
[674,null,null,null,null,null,null,null,null,null,null,0,","]
[675,null,null,null,null,null,null,null,null,null,null,0,","]
[676,null,null,null,null,null,null,null,null,null,null,0,","]
[677,null,null,null,null,null,null,null,null,null,null,0,","]
[678,null,null,null,null,null,null,null,null,null,null,0,","]
[679,null,null,null,null,null,null,null,null,null,null,0,","]
[680,null,null,null,null,null,null,null,null,null,null,0,","]
[681,null,null,null,null,null,null,null,null,null,null,0,","]
[682,null,null,null,null,null,null,null,null,null,null,0,","]
[683,null,null,null,null,null,null,null,null,null,null,0,","]
[684,null,null,null,null,null,null,null,null,null,null,0,","]
[685,null,null,null,null,null,null,null,null,null,null,0,","]
[686,null,null,null,null,null,null,null,null,null,null,0,","]
[687,null,null,null,null,null,null,null,null,null,null,0,","]
[688,null,null,null,null,null,null,null,null,null,null,0,","]
[689,null,null,null,null,null,null,null,null,null,null,0,","]
[690,null,null,null,null,null,null,null,null,null,null,0,","]
[691,null,null,null,null,null,null,null,null,null,null,0,","]
[692,null,null,null,null,null,null,null,null,null,null,0,","]
[693,null,null,null,null,null,null,null,null,null,null,0,","]
[694,null,null,null,null,null,null,null,null,null,null,0,","]
[695,null,null,null,null,null,null,null,null,null,null,0,","]
[696,null,null,null,null,null,null,null,null,null,null,0,","]
[697,null,null,null,null,null,null,null,null,null,null,0,","]
[698,null,null,null,null,null,null,null,null,null,null,0,","]
[699,null,null,null,null,null,null,null,null,null,null,0,","]
[700,null,null,null,null,null,null,null,null,null,null,0,","]
[701,null,null,null,null,null,null,null,null,null,null,0,","]
[702,null,null,null,null,null,null,null,null,null,null,0,","]
[703,null,null,null,null,null,null,null,null,null,null,0,","]
[704,null,null,null,null,null,null,null,null,null,null,0,","]
[705,null,null,null,null,null,null,null,null,null,null,{"$f":"((J712+K712)-(B712+C712))","v":0},{"$f":"H712&\",\"&I712","v":","}]
[706,null,null,null,null,null,null,null,null,null,null,0,","]
[707,null,null,null,null,null,null,null,null,null,null,0,","]
[708,null,null,null,null,null,null,null,null,null,null,0,","]
[709,null,null,null,null,null,null,null,null,null,null,0,","]
[710,null,null,null,null,null,null,null,null,null,null,0,","]
[711,null,null,null,null,null,null,null,null,null,null,0,","]
[712,null,null,null,null,null,null,null,null,null,null,0,","]
[713,null,null,null,null,null,null,null,null,null,null,0,","]
[714,null,null,null,null,null,null,null,null,null,null,0,","]
[715,null,null,null,null,null,null,null,null,null,null,0,","]
[716,null,null,null,null,null,null,null,null,null,null,0,","]
[717,null,null,null,null,null,null,null,null,null,null,0,","]
[718,null,null,null,null,null,null,null,null,null,null,0,","]
[719,null,null,null,null,null,null,null,null,null,null,0,","]
[720,null,null,null,null,null,null,null,null,null,null,0,","]
[721,null,null,null,null,null,null,null,null,null,null,0,","]
[722,null,null,null,null,null,null,null,null,null,null,0,","]
[723,null,null,null,null,null,null,null,null,null,null,0,","]
[724,null,null,null,null,null,null,null,null,null,null,0,","]
[725,null,null,null,null,null,null,null,null,null,null,0,","]
[726,null,null,null,null,null,null,null,null,null,null,0,","]
[727,null,null,null,null,null,null,null,null,null,null,0,","]
[728,null,null,null,null,null,null,null,null,null,null,0,","]
[729,null,null,null,null,null,null,null,null,null,null,0,","]
[730,null,null,null,null,null,null,null,null,null,null,0,","]
[731,null,null,null,null,null,null,null,null,null,null,0,","]
[732,null,null,null,null,null,null,null,null,null,null,0,","]
[733,null,null,null,null,null,null,null,null,null,null,0,","]
[734,null,null,null,null,null,null,null,null,null,null,0,","]
[735,null,null,null,null,null,null,null,null,null,null,0,","]
[736,null,null,null,null,null,null,null,null,null,null,0,","]
[737,null,null,null,null,null,null,null,null,null,null,0,","]
[738,null,null,null,null,null,null,null,null,null,null,0,","]
[739,null,null,null,null,null,null,null,null,null,null,0,","]
[740,null,null,null,null,null,null,null,null,null,null,0,","]
[741,null,null,null,null,null,null,null,null,null,null,0,","]
[742,null,null,null,null,null,null,null,null,null,null,0,","]
[743,null,null,null,null,null,null,null,null,null,null,0,","]
[744,null,null,null,null,null,null,null,null,null,null,0,","]
[745,null,null,null,null,null,null,null,null,null,null,0,","]
[746,null,null,null,null,null,null,null,null,null,null,0,","]
[747,null,null,null,null,null,null,null,null,null,null,0,","]
[748,null,null,null,null,null,null,null,null,null,null,0,","]
[749,null,null,null,null,null,null,null,null,null,null,0,","]
[750,null,null,null,null,null,null,null,null,null,null,0,","]
[751,null,null,null,null,null,null,null,null,null,null,0,","]
[752,null,null,null,null,null,null,null,null,null,null,0,","]
[753,null,null,null,null,null,null,null,null,null,null,0,","]
[754,null,null,null,null,null,null,null,null,null,null,0,","]
[755,null,null,null,null,null,null,null,null,null,null,0,","]
[756,null,null,null,null,null,null,null,null,null,null,0,","]
[757,null,null,null,null,null,null,null,null,null,null,0,","]
[758,null,null,null,null,null,null,null,null,null,null,0,","]
[759,null,null,null,null,null,null,null,null,null,null,0,","]
[760,null,null,null,null,null,null,null,null,null,null,0,","]
[761,null,null,null,null,null,null,null,null,null,null,0,","]
[762,null,null,null,null,null,null,null,null,null,null,0,","]
[763,null,null,null,null,null,null,null,null,null,null,0,","]
[764,null,null,null,null,null,null,null,null,null,null,0,","]
[765,null,null,null,null,null,null,null,null,null,null,0,","]
[766,null,null,null,null,null,null,null,null,null,null,0,","]
[767,null,null,null,null,null,null,null,null,null,null,0,","]
[768,null,null,null,null,null,null,null,null,null,null,0,","]
[769,null,null,null,null,null,null,null,null,null,null,{"$f":"((J776+K776)-(B776+C776))","v":0},{"$f":"H776&\",\"&I776","v":","}]
[770,null,null,null,null,null,null,null,null,null,null,0,","]
[771,null,null,null,null,null,null,null,null,null,null,0,","]
[772,null,null,null,null,null,null,null,null,null,null,0,","]
[773,null,null,null,null,null,null,null,null,null,null,0,","]
[774,null,null,null,null,null,null,null,null,null,null,0,","]
[775,null,null,null,null,null,null,null,null,null,null,0,","]
[776,null,null,null,null,null,null,null,null,null,null,0,","]
[777,null,null,null,null,null,null,null,null,null,null,0,","]
[778,null,null,null,null,null,null,null,null,null,null,0,","]
[779,null,null,null,null,null,null,null,null,null,null,0,","]
[780,null,null,null,null,null,null,null,null,null,null,0,","]
[781,null,null,null,null,null,null,null,null,null,null,0,","]
[782,null,null,null,null,null,null,null,null,null,null,0,","]
[783,null,null,null,null,null,null,null,null,null,null,0,","]
[784,null,null,null,null,null,null,null,null,null,null,0,","]
[785,null,null,null,null,null,null,null,null,null,null,0,","]
[786,null,null,null,null,null,null,null,null,null,null,0,","]
[787,null,null,null,null,null,null,null,null,null,null,0,","]
[788,null,null,null,null,null,null,null,null,null,null,0,","]
[789,null,null,null,null,null,null,null,null,null,null,0,","]
[790,null,null,null,null,null,null,null,null,null,null,0,","]
[791,null,null,null,null,null,null,null,null,null,null,0,","]
[792,null,null,null,null,null,null,null,null,null,null,0,","]
[793,null,null,null,null,null,null,null,null,null,null,0,","]
[794,null,null,null,null,null,null,null,null,null,null,0,","]
[795,null,null,null,null,null,null,null,null,null,null,0,","]
[796,null,null,null,null,null,null,null,null,null,null,0,","]
[797,null,null,null,null,null,null,null,null,null,null,0,","]
[798,null,null,null,null,null,null,null,null,null,null,0,","]
[799,null,null,null,null,null,null,null,null,null,null,0,","]
[800,null,null,null,null,null,null,null,null,null,null,0,","]
[801,null,null,null,null,null,null,null,null,null,null,0,","]
[802,null,null,null,null,null,null,null,null,null,null,0,","]
[803,null,null,null,null,null,null,null,null,null,null,0,","]
[804,null,null,null,null,null,null,null,null,null,null,0,","]
[805,null,null,null,null,null,null,null,null,null,null,0,","]
[806,null,null,null,null,null,null,null,null,null,null,0,","]
[807,null,null,null,null,null,null,null,null,null,null,0,","]
[808,null,null,null,null,null,null,null,null,null,null,0,","]
[809,null,null,null,null,null,null,null,null,null,null,0,","]
[810,null,null,null,null,null,null,null,null,null,null,0,","]
[811,null,null,null,null,null,null,null,null,null,null,0,","]
[812,null,null,null,null,null,null,null,null,null,null,0,","]
[813,null,null,null,null,null,null,null,null,null,null,0,","]
[814,null,null,null,null,null,null,null,null,null,null,0,","]
[815,null,null,null,null,null,null,null,null,null,null,0,","]
[816,null,null,null,null,null,null,null,null,null,null,0,","]
[817,null,null,null,null,null,null,null,null,null,null,0,","]
[818,null,null,null,null,null,null,null,null,null,null,0,","]
[819,null,null,null,null,null,null,null,null,null,null,0,","]
[820,null,null,null,null,null,null,null,null,null,null,0,","]
[821,null,null,null,null,null,null,null,null,null,null,0,","]
[822,null,null,null,null,null,null,null,null,null,null,0,","]
[823,null,null,null,null,null,null,null,null,null,null,0,","]
[824,null,null,null,null,null,null,null,null,null,null,0,","]
[825,null,null,null,null,null,null,null,null,null,null,0,","]
[826,null,null,null,null,null,null,null,null,null,null,0,","]
[827,null,null,null,null,null,null,null,null,null,null,0,","]
[828,null,null,null,null,null,null,null,null,null,null,0,","]
[829,null,null,null,null,null,null,null,null,null,null,0,","]
[830,null,null,null,null,null,null,null,null,null,null,0,","]
[831,null,null,null,null,null,null,null,null,null,null,0,","]
[832,null,null,null,null,null,null,null,null,null,null,0,","]
[833,null,null,null,null,null,null,null,null,null,null,{"$f":"((J840+K840)-(B840+C840))","v":0},{"$f":"H840&\",\"&I840","v":","}]
[834,null,null,null,null,null,null,null,null,null,null,0,","]
[835,null,null,null,null,null,null,null,null,null,null,0,","]
[836,null,null,null,null,null,null,null,null,null,null,0,","]
[837,null,null,null,null,null,null,null,null,null,null,0,","]
[838,null,null,null,null,null,null,null,null,null,null,0,","]
[839,null,null,null,null,null,null,null,null,null,null,0,","]
[840,null,null,null,null,null,null,null,null,null,null,0,","]
[841,null,null,null,null,null,null,null,null,null,null,0,","]
[842,null,null,null,null,null,null,null,null,null,null,0,","]
[843,null,null,null,null,null,null,null,null,null,null,0,","]
[844,null,null,null,null,null,null,null,null,null,null,0,","]
[845,null,null,null,null,null,null,null,null,null,null,0,","]
[846,null,null,null,null,null,null,null,null,null,null,0,","]
[847,null,null,null,null,null,null,null,null,null,null,0,","]
[848,null,null,null,null,null,null,null,null,null,null,0,","]
[849,null,null,null,null,null,null,null,null,null,null,0,","]
[850,null,null,null,null,null,null,null,null,null,null,0,","]
[851,null,null,null,null,null,null,null,null,null,null,0,","]
[852,null,null,null,null,null,null,null,null,null,null,0,","]
[853,null,null,null,null,null,null,null,null,null,null,0,","]
[854,null,null,null,null,null,null,null,null,null,null,0,","]
[855,null,null,null,null,null,null,null,null,null,null,0,","]
[856,null,null,null,null,null,null,null,null,null,null,0,","]
[857,null,null,null,null,null,null,null,null,null,null,0,","]
[858,null,null,null,null,null,null,null,null,null,null,0,","]
[859,null,null,null,null,null,null,null,null,null,null,0,","]
[860,null,null,null,null,null,null,null,null,null,null,0,","]
[861,null,null,null,null,null,null,null,null,null,null,0,","]
[862,null,null,null,null,null,null,null,null,null,null,0,","]
[863,null,null,null,null,null,null,null,null,null,null,0,","]
[864,null,null,null,null,null,null,null,null,null,null,0,","]
[865,null,null,null,null,null,null,null,null,null,null,0,","]
[866,null,null,null,null,null,null,null,null,null,null,0,","]
[867,null,null,null,null,null,null,null,null,null,null,0,","]
[868,null,null,null,null,null,null,null,null,null,null,0,","]
[869,null,null,null,null,null,null,null,null,null,null,0,","]
[870,null,null,null,null,null,null,null,null,null,null,0,","]
[871,null,null,null,null,null,null,null,null,null,null,0,","]
[872,null,null,null,null,null,null,null,null,null,null,0,","]
[873,null,null,null,null,null,null,null,null,null,null,0,","]
[874,null,null,null,null,null,null,null,null,null,null,0,","]
[875,null,null,null,null,null,null,null,null,null,null,0,","]
[876,null,null,null,null,null,null,null,null,null,null,0,","]
[877,null,null,null,null,null,null,null,null,null,null,0,","]
[878,null,null,null,null,null,null,null,null,null,null,0,","]
[879,null,null,null,null,null,null,null,null,null,null,0,","]
[880,null,null,null,null,null,null,null,null,null,null,0,","]
[881,null,null,null,null,null,null,null,null,null,null,0,","]
[882,null,null,null,null,null,null,null,null,null,null,0,","]
[883,null,null,null,null,null,null,null,null,null,null,0,","]
[884,null,null,null,null,null,null,null,null,null,null,0,","]
[885,null,null,null,null,null,null,null,null,null,null,0,","]
[886,null,null,null,null,null,null,null,null,null,null,0,","]
[887,null,null,null,null,null,null,null,null,null,null,0,","]
[888,null,null,null,null,null,null,null,null,null,null,0,","]
[889,null,null,null,null,null,null,null,null,null,null,0,","]
[890,null,null,null,null,null,null,null,null,null,null,0,","]
[891,null,null,null,null,null,null,null,null,null,null,0,","]
[892,null,null,null,null,null,null,null,null,null,null,0,","]
[893,null,null,null,null,null,null,null,null,null,null,0,","]
[894,null,null,null,null,null,null,null,null,null,null,0,","]
[895,null,null,null,null,null,null,null,null,null,null,0,","]
[896,null,null,null,null,null,null,null,null,null,null,0,","]
[897,null,null,null,null,null,null,null,null,null,null,{"$f":"((J904+K904)-(B904+C904))","v":0},{"$f":"H904&\",\"&I904","v":","}]
[898,null,null,null,null,null,null,null,null,null,null,0,","]
[899,null,null,null,null,null,null,null,null,null,null,0,","]
[900,null,null,null,null,null,null,null,null,null,null,0,","]
[901,null,null,null,null,null,null,null,null,null,null,0,","]
[902,null,null,null,null,null,null,null,null,null,null,0,","]
[903,null,null,null,null,null,null,null,null,null,null,0,","]
[904,null,null,null,null,null,null,null,null,null,null,0,","]
[905,null,null,null,null,null,null,null,null,null,null,0,","]
[906,null,null,null,null,null,null,null,null,null,null,0,","]
[907,null,null,null,null,null,null,null,null,null,null,0,","]
[908,null,null,null,null,null,null,null,null,null,null,0,","]
[909,null,null,null,null,null,null,null,null,null,null,0,","]
[910,null,null,null,null,null,null,null,null,null,null,0,","]
[911,null,null,null,null,null,null,null,null,null,null,0,","]
[912,null,null,null,null,null,null,null,null,null,null,0,","]
[913,null,null,null,null,null,null,null,null,null,null,0,","]
[914,null,null,null,null,null,null,null,null,null,null,0,","]
[915,null,null,null,null,null,null,null,null,null,null,0,","]
[916,null,null,null,null,null,null,null,null,null,null,0,","]
[917,null,null,null,null,null,null,null,null,null,null,0,","]
[918,null,null,null,null,null,null,null,null,null,null,0,","]
[919,null,null,null,null,null,null,null,null,null,null,0,","]
[920,null,null,null,null,null,null,null,null,null,null,0,","]
[921,null,null,null,null,null,null,null,null,null,null,0,","]
[922,null,null,null,null,null,null,null,null,null,null,0,","]
[923,null,null,null,null,null,null,null,null,null,null,0,","]
[924,null,null,null,null,null,null,null,null,null,null,0,","]
[925,null,null,null,null,null,null,null,null,null,null,0,","]
[926,null,null,null,null,null,null,null,null,null,null,0,","]
[927,null,null,null,null,null,null,null,null,null,null,0,","]
[928,null,null,null,null,null,null,null,null,null,null,0,","]
[929,null,null,null,null,null,null,null,null,null,null,0,","]
[930,null,null,null,null,null,null,null,null,null,null,0,","]
[931,null,null,null,null,null,null,null,null,null,null,0,","]
[932,null,null,null,null,null,null,null,null,null,null,0,","]
[933,null,null,null,null,null,null,null,null,null,null,0,","]
[934,null,null,null,null,null,null,null,null,null,null,0,","]
[935,null,null,null,null,null,null,null,null,null,null,0,","]
[936,null,null,null,null,null,null,null,null,null,null,0,","]
[937,null,null,null,null,null,null,null,null,null,null,0,","]
[938,null,null,null,null,null,null,null,null,null,null,0,","]
[939,null,null,null,null,null,null,null,null,null,null,0,","]
[940,null,null,null,null,null,null,null,null,null,null,0,","]
[941,null,null,null,null,null,null,null,null,null,null,0,","]
[942,null,null,null,null,null,null,null,null,null,null,0,","]
[943,null,null,null,null,null,null,null,null,null,null,0,","]
[944,null,null,null,null,null,null,null,null,null,null,0,","]
[945,null,null,null,null,null,null,null,null,null,null,0,","]
[946,null,null,null,null,null,null,null,null,null,null,0,","]
[947,null,null,null,null,null,null,null,null,null,null,0,","]
[948,null,null,null,null,null,null,null,null,null,null,0,","]
[949,null,null,null,null,null,null,null,null,null,null,0,","]
[950,null,null,null,null,null,null,null,null,null,null,0,","]
[951,null,null,null,null,null,null,null,null,null,null,0,","]
[952,null,null,null,null,null,null,null,null,null,null,0,","]
[953,null,null,null,null,null,null,null,null,null,null,0,","]
[954,null,null,null,null,null,null,null,null,null,null,0,","]
[955,null,null,null,null,null,null,null,null,null,null,0,","]
[956,null,null,null,null,null,null,null,null,null,null,0,","]
[957,null,null,null,null,null,null,null,null,null,null,0,","]
[958,null,null,null,null,null,null,null,null,null,null,0,","]
[959,null,null,null,null,null,null,null,null,null,null,0,","]
[960,null,null,null,null,null,null,null,null,null,null,0,","]
[961,null,null,null,null,null,null,null,null,null,null,{"$f":"((J968+K968)-(B968+C968))","v":0},{"$f":"H968&\",\"&I968","v":","}]
[962,null,null,null,null,null,null,null,null,null,null,0,","]
[963,null,null,null,null,null,null,null,null,null,null,0,","]
[964,null,null,null,null,null,null,null,null,null,null,0,","]
[965,null,null,null,null,null,null,null,null,null,null,0,","]
[966,null,null,null,null,null,null,null,null,null,null,0,","]
[967,null,null,null,null,null,null,null,null,null,null,0,","]
[968,null,null,null,null,null,null,null,null,null,null,0,","]
[969,null,null,null,null,null,null,null,null,null,null,0,","]
[970,null,null,null,null,null,null,null,null,null,null,0,","]
[971,null,null,null,null,null,null,null,null,null,null,0,","]
[972,null,null,null,null,null,null,null,null,null,null,0,","]
[973,null,null,null,null,null,null,null,null,null,null,0,","]
[974,null,null,null,null,null,null,null,null,null,null,0,","]
[975,null,null,null,null,null,null,null,null,null,null,0,","]
[976,null,null,null,null,null,null,null,null,null,null,0,","]
[977,null,null,null,null,null,null,null,null,null,null,0,","]
[978,null,null,null,null,null,null,null,null,null,null,0,","]
[979,null,null,null,null,null,null,null,null,null,null,0,","]
[980,null,null,null,null,null,null,null,null,null,null,0,","]
[981,null,null,null,null,null,null,null,null,null,null,0,","]
[982,null,null,null,null,null,null,null,null,null,null,0,","]
[983,null,null,null,null,null,null,null,null,null,null,0,","]
[984,null,null,null,null,null,null,null,null,null,null,0,","]
[985,null,null,null,null,null,null,null,null,null,null,0,","]
[986,null,null,null,null,null,null,null,null,null,null,0,","]
[987,null,null,null,null,null,null,null,null,null,null,0,","]
[988,null,null,null,null,null,null,null,null,null,null,0,","]
[989,null,null,null,null,null,null,null,null,null,null,0,","]
[990,null,null,null,null,null,null,null,null,null,null,0,","]
[991,null,null,null,null,null,null,null,null,null,null,0,","]
[992,null,null,null,null,null,null,null,null,null,null,0,","]
[993,null,null,null,null,null,null,null,null,null,null,0,","]
[994,null,null,null,null,null,null,null,null,null,null,0,","]
[995,null,null,null,null,null,null,null,null,null,null,0,","]
[996,null,null,null,null,null,null,null,null,null,null,0,","]
[997,null,null,null,null,null,null,null,null,null,null,0,","]
[998,null,null,null,null,null,null,null,null,null,null,0,","]
[999,null,null,null,null,null,null,null,null,null,null,0,","]
[1000,null,null,null,null,null,null,null,null,null,null,0,","]
[1001,null,null,null,null,null,null,null,null,null,null,0,","]
[1002,null,null,null,null,null,null,null,null,null,null,0,","]
[1003,null,null,null,null,null,null,null,null,null,null,0,","]
[1004,null,null,null,null,null,null,null,null,null,null,0,","]
[1005,null,null,null,null,null,null,null,null,null,null,0,","]
[1006,null,null,null,null,null,null,null,null,null,null,0,","]
[1007,null,null,null,null,null,null,null,null,null,null,0,","]
[1008,null,null,null,null,null,null,null,null,null,null,0,","]
[1009,null,null,null,null,null,null,null,null,null,null,0,","]
[1010,null,null,null,null,null,null,null,null,null,null,0,","]
[1011,null,null,null,null,null,null,null,null,null,null,0,","]
[1012,null,null,null,null,null,null,null,null,null,null,0,","]
[1013,null,null,null,null,null,null,null,null,null,null,0,","]
[1014,null,null,null,null,null,null,null,null,null,null,0,","]
[1015,null,null,null,null,null,null,null,null,null,null,0,","]
[1016,null,null,null,null,null,null,null,null,null,null,0,","]
[1017,null,null,null,null,null,null,null,null,null,null,0,","]
[1018,null,null,null,null,null,null,null,null,null,null,0,","]
[1019,null,null,null,null,null,null,null,null,null,null,0,","]
[1020,null,null,null,null,null,null,null,null,null,null,0,","]
[1021,null,null,null,null,null,null,null,null,null,null,0,","]
[1022,null,null,null,null,null,null,null,null,null,null,0,","]
[1023,null,null,null,null,null,null,null,null,null,null,0,","]
[1024,null,null,null,null,null,null,null,null,null,null,0,","]
[1025,null,null,null,null,null,null,null,null,null,null,{"$f":"((J1032+K1032)-(B1032+C1032))","v":0},{"$f":"H1032&\",\"&I1032","v":","}]
[1026,null,null,null,null,null,null,null,null,null,null,0,","]
[1027,null,null,null,null,null,null,null,null,null,null,0,","]
[1028,null,null,null,null,null,null,null,null,null,null,0,","]
[1029,null,null,null,null,null,null,null,null,null,null,0,","]
[1030,null,null,null,null,null,null,null,null,null,null,0,","]
[1031,null,null,null,null,null,null,null,null,null,null,0,","]
[1032,null,null,null,null,null,null,null,null,null,null,0,","]
[1033,null,null,null,null,null,null,null,null,null,null,0,","]
[1034,null,null,null,null,null,null,null,null,null,null,0,","]
[1035,null,null,null,null,null,null,null,null,null,null,0,","]
[1036,null,null,null,null,null,null,null,null,null,null,0,","]
[1037,null,null,null,null,null,null,null,null,null,null,0,","]
[1038,null,null,null,null,null,null,null,null,null,null,0,","]
[1039,null,null,null,null,null,null,null,null,null,null,0,","]
[1040,null,null,null,null,null,null,null,null,null,null,0,","]
[1041,null,null,null,null,null,null,null,null,null,null,0,","]
[1042,null,null,null,null,null,null,null,null,null,null,0,","]
[1043,null,null,null,null,null,null,null,null,null,null,0,","]
[1044,null,null,null,null,null,null,null,null,null,null,0,","]
[1045,null,null,null,null,null,null,null,null,null,null,0,","]
[1046,null,null,null,null,null,null,null,null,null,null,0,","]
[1047,null,null,null,null,null,null,null,null,null,null,0,","]
[1048,null,null,null,null,null,null,null,null,null,null,0,","]
[1049,null,null,null,null,null,null,null,null,null,null,0,","]
[1050,null,null,null,null,null,null,null,null,null,null,0,","]
[1051,null,null,null,null,null,null,null,null,null,null,0,","]
[1052,null,null,null,null,null,null,null,null,null,null,0,","]
[1053,null,null,null,null,null,null,null,null,null,null,0,","]
[1054,null,null,null,null,null,null,null,null,null,null,0,","]
[1055,null,null,null,null,null,null,null,null,null,null,0,","]
[1056,null,null,null,null,null,null,null,null,null,null,0,","]
[1057,null,null,null,null,null,null,null,null,null,null,0,","]
[1058,null,null,null,null,null,null,null,null,null,null,0,","]
[1059,null,null,null,null,null,null,null,null,null,null,0,","]
[1060,null,null,null,null,null,null,null,null,null,null,0,","]
[1061,null,null,null,null,null,null,null,null,null,null,0,","]
[1062,null,null,null,null,null,null,null,null,null,null,0,","]
[1063,null,null,null,null,null,null,null,null,null,null,0,","]
[1064,null,null,null,null,null,null,null,null,null,null,0,","]
[1065,null,null,null,null,null,null,null,null,null,null,0,","]
[1066,null,null,null,null,null,null,null,null,null,null,0,","]
[1067,null,null,null,null,null,null,null,null,null,null,0,","]
[1068,null,null,null,null,null,null,null,null,null,null,0,","]
[1069,null,null,null,null,null,null,null,null,null,null,0,","]
[1070,null,null,null,null,null,null,null,null,null,null,0,","]
[1071,null,null,null,null,null,null,null,null,null,null,0,","]
[1072,null,null,null,null,null,null,null,null,null,null,0,","]
[1073,null,null,null,null,null,null,null,null,null,null,0,","]
[1074,null,null,null,null,null,null,null,null,null,null,0,","]
[1075,null,null,null,null,null,null,null,null,null,null,0,","]
[1076,null,null,null,null,null,null,null,null,null,null,0,","]
[1077,null,null,null,null,null,null,null,null,null,null,0,","]
[1078,null,null,null,null,null,null,null,null,null,null,0,","]
[1079,null,null,null,null,null,null,null,null,null,null,0,","]
[1080,null,null,null,null,null,null,null,null,null,null,0,","]
[1081,null,null,null,null,null,null,null,null,null,null,0,","]
[1082,null,null,null,null,null,null,null,null,null,null,0,","]
[1083,null,null,null,null,null,null,null,null,null,null,0,","]
[1084,null,null,null,null,null,null,null,null,null,null,0,","]
[1085,null,null,null,null,null,null,null,null,null,null,0,","]
[1086,null,null,null,null,null,null,null,null,null,null,0,","]
[1087,null,null,null,null,null,null,null,null,null,null,0,","]
[1088,null,null,null,null,null,null,null,null,null,null,0,","]
[1089,null,null,null,null,null,null,null,null,null,null,{"$f":"((J1096+K1096)-(B1096+C1096))","v":0},{"$f":"H1096&\",\"&I1096","v":","}]
[1090,null,null,null,null,null,null,null,null,null,null,0,","]
[1091,null,null,null,null,null,null,null,null,null,null,0,","]
[1092,null,null,null,null,null,null,null,null,null,null,0,","]
[1093,null,null,null,null,null,null,null,null,null,null,0,","]
[1094,null,null,null,null,null,null,null,null,null,null,0,","]
[1095,null,null,null,null,null,null,null,null,null,null,0,","]
[1096,null,null,null,null,null,null,null,null,null,null,0,","]
[1097,null,null,null,null,null,null,null,null,null,null,0,","]
[1098,null,null,null,null,null,null,null,null,null,null,0,","]
[1099,null,null,null,null,null,null,null,null,null,null,0,","]
[1100,null,null,null,null,null,null,null,null,null,null,0,","]
[1101,null,null,null,null,null,null,null,null,null,null,0,","]
[1102,null,null,null,null,null,null,null,null,null,null,0,","]
[1103,null,null,null,null,null,null,null,null,null,null,0,","]
[1104,null,null,null,null,null,null,null,null,null,null,0,","]
[1105,null,null,null,null,null,null,null,null,null,null,0,","]
[1106,null,null,null,null,null,null,null,null,null,null,0,","]
[1107,null,null,null,null,null,null,null,null,null,null,0,","]
[1108,null,null,null,null,null,null,null,null,null,null,0,","]
[1109,null,null,null,null,null,null,null,null,null,null,0,","]
[1110,null,null,null,null,null,null,null,null,null,null,0,","]
[1111,null,null,null,null,null,null,null,null,null,null,0,","]
[1112,null,null,null,null,null,null,null,null,null,null,0,","]
[1113,null,null,null,null,null,null,null,null,null,null,0,","]
[1114,null,null,null,null,null,null,null,null,null,null,0,","]
[1115,null,null,null,null,null,null,null,null,null,null,0,","]
[1116,null,null,null,null,null,null,null,null,null,null,0,","]
[1117,null,null,null,null,null,null,null,null,null,null,0,","]
[1118,null,null,null,null,null,null,null,null,null,null,0,","]
[1119,null,null,null,null,null,null,null,null,null,null,0,","]
[1120,null,null,null,null,null,null,null,null,null,null,0,","]
[1121,null,null,null,null,null,null,null,null,null,null,0,","]
[1122,null,null,null,null,null,null,null,null,null,null,0,","]
[1123,null,null,null,null,null,null,null,null,null,null,0,","]
[1124,null,null,null,null,null,null,null,null,null,null,0,","]
[1125,null,null,null,null,null,null,null,null,null,null,0,","]
[1126,null,null,null,null,null,null,null,null,null,null,0,","]
[1127,null,null,null,null,null,null,null,null,null,null,0,","]
[1128,null,null,null,null,null,null,null,null,null,null,0,","]
[1129,null,null,null,null,null,null,null,null,null,null,0,","]
[1130,null,null,null,null,null,null,null,null,null,null,0,","]
[1131,null,null,null,null,null,null,null,null,null,null,0,","]
[1132,null,null,null,null,null,null,null,null,null,null,0,","]
[1133,null,null,null,null,null,null,null,null,null,null,0,","]
[1134,null,null,null,null,null,null,null,null,null,null,0,","]
[]
[]
[null,null,null,null,null,null,null,null,null,null,null,null,null,"ALTA","MENOS DE 2 HORAS"]
[null,null,null,null,null,null,null,null,null,null,null,null,null,"MEDIA","ENTRE 2 HORAS Y 24 HORAS"]
[null,null,null,null,null,null,null,null,null,null,null,null,null,"BAJA","MAS DE 24 HORAS"]

{"sheet":"ESTADISTICAS1","index":1,"n_rows":48,"n_cols":10,"rows_kept":48,"cut":false,"hidden":false,"merged":[[44,0,44,1],[44,8,47,8],[44,9,47,9],[45,0,45,1],[46,0,46,1],[47,2,47,3],[43,2,43,3],[44,2,44,3],[45,2,45,3],[46,2,46,3],[40,3,40,5],[0,0,0,4],[33,0,34,0],[33,4,34,4],[34,1,34,3],[39,3,39,5]]}
["Número de Incidentes  en mes"]
["FECHA","CORREO","TELEFÓNICO","PERSONAL","Total"]
["2015-04-01",{"$f":"COUNTIFS(REGISTRO!$B$8:$B$1142,A3,REGISTRO!$G$8:$G$1142,\"CORREO\")","v":0},{"$f":"COUNTIFS(REGISTRO!$B$8:$B$1142,A3,REGISTRO!$G$8:$G$1142,\"TELEFÓNICO\")","v":0},{"$f":"COUNTIFS(REGISTRO!$B$8:$B$1142,A3,REGISTRO!$G$8:$G$1142,\"PERSONAL\")","v":0},{"$f":"SUM(B3:D3)","v":0}]
["2015-04-02",{"$f":"COUNTIFS(REGISTRO!$B$8:$B$1142,A4,REGISTRO!$G$8:$G$1142,\"CORREO\")","v":0},{"$f":"COUNTIFS(REGISTRO!$B$8:$B$1142,A4,REGISTRO!$G$8:$G$1142,\"TELEFÓNICO\")","v":0},{"$f":"COUNTIFS(REGISTRO!$B$8:$B$1142,A4,REGISTRO!$G$8:$G$1142,\"PERSONAL\")","v":0},{"$f":"SUM(B4:D4)","v":0}]
["2015-04-03",{"$f":"COUNTIFS(REGISTRO!$B$8:$B$1142,A5,REGISTRO!$G$8:$G$1142,\"CORREO\")","v":0},{"$f":"COUNTIFS(REGISTRO!$B$8:$B$1142,A5,REGISTRO!$G$8:$G$1142,\"TELEFÓNICO\")","v":0},{"$f":"COUNTIFS(REGISTRO!$B$8:$B$1142,A5,REGISTRO!$G$8:$G$1142,\"PERSONAL\")","v":0},0]
["2015-04-04",{"$f":"COUNTIFS(REGISTRO!$B$8:$B$1142,A6,REGISTRO!$G$8:$G$1142,\"CORREO\")","v":0},{"$f":"COUNTIFS(REGISTRO!$B$8:$B$1142,A6,REGISTRO!$G$8:$G$1142,\"TELEFÓNICO\")","v":0},{"$f":"COUNTIFS(REGISTRO!$B$8:$B$1142,A6,REGISTRO!$G$8:$G$1142,\"PERSONAL\")","v":0},0]
["2015-04-05",{"$f":"COUNTIFS(REGISTRO!$B$8:$B$1142,A7,REGISTRO!$G$8:$G$1142,\"CORREO\")","v":0},{"$f":"COUNTIFS(REGISTRO!$B$8:$B$1142,A7,REGISTRO!$G$8:$G$1142,\"TELEFÓNICO\")","v":0},{"$f":"COUNTIFS(REGISTRO!$B$8:$B$1142,A7,REGISTRO!$G$8:$G$1142,\"PERSONAL\")","v":0},0]
["2015-04-06",{"$f":"COUNTIFS(REGISTRO!$B$8:$B$1142,A8,REGISTRO!$G$8:$G$1142,\"CORREO\")","v":0},{"$f":"COUNTIFS(REGISTRO!$B$8:$B$1142,A8,REGISTRO!$G$8:$G$1142,\"TELEFÓNICO\")","v":0},{"$f":"COUNTIFS(REGISTRO!$B$8:$B$1142,A8,REGISTRO!$G$8:$G$1142,\"PERSONAL\")","v":0},0]
["2015-04-07",{"$f":"COUNTIFS(REGISTRO!$B$8:$B$1142,A9,REGISTRO!$G$8:$G$1142,\"CORREO\")","v":0},{"$f":"COUNTIFS(REGISTRO!$B$8:$B$1142,A9,REGISTRO!$G$8:$G$1142,\"TELEFÓNICO\")","v":0},{"$f":"COUNTIFS(REGISTRO!$B$8:$B$1142,A9,REGISTRO!$G$8:$G$1142,\"PERSONAL\")","v":0},0]
["2015-04-08",{"$f":"COUNTIFS(REGISTRO!$B$8:$B$1142,A10,REGISTRO!$G$8:$G$1142,\"CORREO\")","v":0},{"$f":"COUNTIFS(REGISTRO!$B$8:$B$1142,A10,REGISTRO!$G$8:$G$1142,\"TELEFÓNICO\")","v":0},{"$f":"COUNTIFS(REGISTRO!$B$8:$B$1142,A10,REGISTRO!$G$8:$G$1142,\"PERSONAL\")","v":0},0]
["2015-04-09",{"$f":"COUNTIFS(REGISTRO!$B$8:$B$1142,A11,REGISTRO!$G$8:$G$1142,\"CORREO\")","v":0},{"$f":"COUNTIFS(REGISTRO!$B$8:$B$1142,A11,REGISTRO!$G$8:$G$1142,\"TELEFÓNICO\")","v":0},{"$f":"COUNTIFS(REGISTRO!$B$8:$B$1142,A11,REGISTRO!$G$8:$G$1142,\"PERSONAL\")","v":0},0]
["2015-04-10",{"$f":"COUNTIFS(REGISTRO!$B$8:$B$1142,A12,REGISTRO!$G$8:$G$1142,\"CORREO\")","v":0},{"$f":"COUNTIFS(REGISTRO!$B$8:$B$1142,A12,REGISTRO!$G$8:$G$1142,\"TELEFÓNICO\")","v":0},{"$f":"COUNTIFS(REGISTRO!$B$8:$B$1142,A12,REGISTRO!$G$8:$G$1142,\"PERSONAL\")","v":0},0]
["2015-04-11",{"$f":"COUNTIFS(REGISTRO!$B$8:$B$1142,A13,REGISTRO!$G$8:$G$1142,\"CORREO\")","v":0},{"$f":"COUNTIFS(REGISTRO!$B$8:$B$1142,A13,REGISTRO!$G$8:$G$1142,\"TELEFÓNICO\")","v":0},{"$f":"COUNTIFS(REGISTRO!$B$8:$B$1142,A13,REGISTRO!$G$8:$G$1142,\"PERSONAL\")","v":0},0]
["2015-04-12",{"$f":"COUNTIFS(REGISTRO!$B$8:$B$1142,A14,REGISTRO!$G$8:$G$1142,\"CORREO\")","v":0},{"$f":"COUNTIFS(REGISTRO!$B$8:$B$1142,A14,REGISTRO!$G$8:$G$1142,\"TELEFÓNICO\")","v":0},{"$f":"COUNTIFS(REGISTRO!$B$8:$B$1142,A14,REGISTRO!$G$8:$G$1142,\"PERSONAL\")","v":0},0]
["2015-04-13",{"$f":"COUNTIFS(REGISTRO!$B$8:$B$1142,A15,REGISTRO!$G$8:$G$1142,\"CORREO\")","v":0},{"$f":"COUNTIFS(REGISTRO!$B$8:$B$1142,A15,REGISTRO!$G$8:$G$1142,\"TELEFÓNICO\")","v":0},{"$f":"COUNTIFS(REGISTRO!$B$8:$B$1142,A15,REGISTRO!$G$8:$G$1142,\"PERSONAL\")","v":0},0]
["2015-04-14",{"$f":"COUNTIFS(REGISTRO!$B$8:$B$1142,A16,REGISTRO!$G$8:$G$1142,\"CORREO\")","v":0},{"$f":"COUNTIFS(REGISTRO!$B$8:$B$1142,A16,REGISTRO!$G$8:$G$1142,\"TELEFÓNICO\")","v":0},{"$f":"COUNTIFS(REGISTRO!$B$8:$B$1142,A16,REGISTRO!$G$8:$G$1142,\"PERSONAL\")","v":0},0]
["2015-04-15",{"$f":"COUNTIFS(REGISTRO!$B$8:$B$1142,A17,REGISTRO!$G$8:$G$1142,\"CORREO\")","v":0},{"$f":"COUNTIFS(REGISTRO!$B$8:$B$1142,A17,REGISTRO!$G$8:$G$1142,\"TELEFÓNICO\")","v":0},{"$f":"COUNTIFS(REGISTRO!$B$8:$B$1142,A17,REGISTRO!$G$8:$G$1142,\"PERSONAL\")","v":0},0]
["2015-04-16",{"$f":"COUNTIFS(REGISTRO!$B$8:$B$1142,A18,REGISTRO!$G$8:$G$1142,\"CORREO\")","v":0},{"$f":"COUNTIFS(REGISTRO!$B$8:$B$1142,A18,REGISTRO!$G$8:$G$1142,\"TELEFÓNICO\")","v":0},{"$f":"COUNTIFS(REGISTRO!$B$8:$B$1142,A18,REGISTRO!$G$8:$G$1142,\"PERSONAL\")","v":0},0]
["2015-04-17",{"$f":"COUNTIFS(REGISTRO!$B$8:$B$1142,A19,REGISTRO!$G$8:$G$1142,\"CORREO\")","v":0},{"$f":"COUNTIFS(REGISTRO!$B$8:$B$1142,A19,REGISTRO!$G$8:$G$1142,\"TELEFÓNICO\")","v":0},{"$f":"COUNTIFS(REGISTRO!$B$8:$B$1142,A19,REGISTRO!$G$8:$G$1142,\"PERSONAL\")","v":0},0]
["2015-04-18",{"$f":"COUNTIFS(REGISTRO!$B$8:$B$1142,A20,REGISTRO!$G$8:$G$1142,\"CORREO\")","v":0},{"$f":"COUNTIFS(REGISTRO!$B$8:$B$1142,A20,REGISTRO!$G$8:$G$1142,\"TELEFÓNICO\")","v":0},{"$f":"COUNTIFS(REGISTRO!$B$8:$B$1142,A20,REGISTRO!$G$8:$G$1142,\"PERSONAL\")","v":0},0]
["2015-04-19",{"$f":"COUNTIFS(REGISTRO!$B$8:$B$1142,A21,REGISTRO!$G$8:$G$1142,\"CORREO\")","v":0},{"$f":"COUNTIFS(REGISTRO!$B$8:$B$1142,A21,REGISTRO!$G$8:$G$1142,\"TELEFÓNICO\")","v":0},{"$f":"COUNTIFS(REGISTRO!$B$8:$B$1142,A21,REGISTRO!$G$8:$G$1142,\"PERSONAL\")","v":0},0]
["2015-04-20",{"$f":"COUNTIFS(REGISTRO!$B$8:$B$1142,A22,REGISTRO!$G$8:$G$1142,\"CORREO\")","v":0},{"$f":"COUNTIFS(REGISTRO!$B$8:$B$1142,A22,REGISTRO!$G$8:$G$1142,\"TELEFÓNICO\")","v":0},{"$f":"COUNTIFS(REGISTRO!$B$8:$B$1142,A22,REGISTRO!$G$8:$G$1142,\"PERSONAL\")","v":0},0]
["2015-04-21",{"$f":"COUNTIFS(REGISTRO!$B$8:$B$1142,A23,REGISTRO!$G$8:$G$1142,\"CORREO\")","v":0},{"$f":"COUNTIFS(REGISTRO!$B$8:$B$1142,A23,REGISTRO!$G$8:$G$1142,\"TELEFÓNICO\")","v":0},{"$f":"COUNTIFS(REGISTRO!$B$8:$B$1142,A23,REGISTRO!$G$8:$G$1142,\"PERSONAL\")","v":0},0]
["2015-04-22",{"$f":"COUNTIFS(REGISTRO!$B$8:$B$1142,A24,REGISTRO!$G$8:$G$1142,\"CORREO\")","v":0},{"$f":"COUNTIFS(REGISTRO!$B$8:$B$1142,A24,REGISTRO!$G$8:$G$1142,\"TELEFÓNICO\")","v":0},{"$f":"COUNTIFS(REGISTRO!$B$8:$B$1142,A24,REGISTRO!$G$8:$G$1142,\"PERSONAL\")","v":0},0]
["2015-04-23",{"$f":"COUNTIFS(REGISTRO!$B$8:$B$1142,A25,REGISTRO!$G$8:$G$1142,\"CORREO\")","v":0},{"$f":"COUNTIFS(REGISTRO!$B$8:$B$1142,A25,REGISTRO!$G$8:$G$1142,\"TELEFÓNICO\")","v":0},{"$f":"COUNTIFS(REGISTRO!$B$8:$B$1142,A25,REGISTRO!$G$8:$G$1142,\"PERSONAL\")","v":0},0]
["2015-04-24",{"$f":"COUNTIFS(REGISTRO!$B$8:$B$1142,A26,REGISTRO!$G$8:$G$1142,\"CORREO\")","v":0},{"$f":"COUNTIFS(REGISTRO!$B$8:$B$1142,A26,REGISTRO!$G$8:$G$1142,\"TELEFÓNICO\")","v":0},{"$f":"COUNTIFS(REGISTRO!$B$8:$B$1142,A26,REGISTRO!$G$8:$G$1142,\"PERSONAL\")","v":0},0]
["2015-04-25",{"$f":"COUNTIFS(REGISTRO!$B$8:$B$1142,A27,REGISTRO!$G$8:$G$1142,\"CORREO\")","v":0},{"$f":"COUNTIFS(REGISTRO!$B$8:$B$1142,A27,REGISTRO!$G$8:$G$1142,\"TELEFÓNICO\")","v":0},{"$f":"COUNTIFS(REGISTRO!$B$8:$B$1142,A27,REGISTRO!$G$8:$G$1142,\"PERSONAL\")","v":0},0]
["2015-04-26",{"$f":"COUNTIFS(REGISTRO!$B$8:$B$1142,A28,REGISTRO!$G$8:$G$1142,\"CORREO\")","v":0},{"$f":"COUNTIFS(REGISTRO!$B$8:$B$1142,A28,REGISTRO!$G$8:$G$1142,\"TELEFÓNICO\")","v":0},{"$f":"COUNTIFS(REGISTRO!$B$8:$B$1142,A28,REGISTRO!$G$8:$G$1142,\"PERSONAL\")","v":0},0]
["2015-04-27",{"$f":"COUNTIFS(REGISTRO!$B$8:$B$1142,A29,REGISTRO!$G$8:$G$1142,\"CORREO\")","v":0},{"$f":"COUNTIFS(REGISTRO!$B$8:$B$1142,A29,REGISTRO!$G$8:$G$1142,\"TELEFÓNICO\")","v":0},{"$f":"COUNTIFS(REGISTRO!$B$8:$B$1142,A29,REGISTRO!$G$8:$G$1142,\"PERSONAL\")","v":0},0]
["2015-04-28",{"$f":"COUNTIFS(REGISTRO!$B$8:$B$1142,A30,REGISTRO!$G$8:$G$1142,\"CORREO\")","v":0},{"$f":"COUNTIFS(REGISTRO!$B$8:$B$1142,A30,REGISTRO!$G$8:$G$1142,\"TELEFÓNICO\")","v":0},{"$f":"COUNTIFS(REGISTRO!$B$8:$B$1142,A30,REGISTRO!$G$8:$G$1142,\"PERSONAL\")","v":0},0]
["2015-04-29",{"$f":"COUNTIFS(REGISTRO!$B$8:$B$1142,A31,REGISTRO!$G$8:$G$1142,\"CORREO\")","v":0},{"$f":"COUNTIFS(REGISTRO!$B$8:$B$1142,A31,REGISTRO!$G$8:$G$1142,\"TELEFÓNICO\")","v":0},{"$f":"COUNTIFS(REGISTRO!$B$8:$B$1142,A31,REGISTRO!$G$8:$G$1142,\"PERSONAL\")","v":0},0]
["2015-04-30",{"$f":"COUNTIFS(REGISTRO!$B$8:$B$1142,A32,REGISTRO!$G$8:$G$1142,\"CORREO\")","v":0},{"$f":"COUNTIFS(REGISTRO!$B$8:$B$1142,A32,REGISTRO!$G$8:$G$1142,\"TELEFÓNICO\")","v":0},{"$f":"COUNTIFS(REGISTRO!$B$8:$B$1142,A32,REGISTRO!$G$8:$G$1142,\"PERSONAL\")","v":0},0]
[null,{"$f":"COUNTIFS(REGISTRO!$B$8:$B$1142,A33,REGISTRO!$G$8:$G$1142,\"CORREO\")","v":0},{"$f":"COUNTIFS(REGISTRO!$B$8:$B$1142,A33,REGISTRO!$G$8:$G$1142,\"TELEFÓNICO\")","v":0},{"$f":"COUNTIFS(REGISTRO!$B$8:$B$1142,A33,REGISTRO!$G$8:$G$1142,\"PERSONAL\")","v":0},0]
["TOTAL",{"$f":"SUM(B3:B33)","v":0},{"$f":"SUM(C3:C33)","v":0},{"$f":"SUM(D3:D33)","v":0},{"$f":"SUM(E3:E33)","v":0}]
[null,{"$f":"SUM(B34:D34)","v":0}]
["Porcentaje",{"$f":"B34/$B$35","v":{"$error":"#DIV/0!"}},{"$f":"C34/$B$35","v":{"$error":"#DIV/0!"}},{"$f":"D34/$B$35","v":{"$error":"#DIV/0!"}},{"$f":"SUM(B36:D36)","v":{"$error":"#DIV/0!"}}]
[]
[]
[]
[null,null,null,"SABADOS"]
[null,null,null,"DOMINGOS Y FESTIVOS"]
[]
[]
[null,null,"PRIORIDAD",null,"Cuota sobre el total de solicitudes en el mes","TOTAL SOLICTUDES ","TOTAL SATISFECHOS ","DEMANDA INSATISFECHA","% SATISFECHO EN TIEMPO DE RESPUESTA","% NO SATISFECHO EN TIEMPO DE RESPUESTA  "]
["Menos de 2 horas",null,{"$f":"[2]REGISTRO!N1009","v":"ALTA"},null,{"$f":"F45/F48","v":{"$error":"#DIV/0!"}},{"$f":"COUNTIF(REGISTRO!$N$8:$N$1142,C45)","v":0},{"$f":"COUNTIFS(REGISTRO!$N$8:$N$1141,C45,REGISTRO!$L$8:$L$1141,\"<=0.0833333333357587\")","v":0},{"$f":"F45-G45","v":0},{"$f":"IF(H48=0,1,1-(H48/F48))","v":1},{"$f":"1-I45","v":0}]
["Menos de 24 horas",null,{"$f":"[2]REGISTRO!N1010","v":"MEDIA"},null,{"$f":"F46/F48","v":{"$error":"#DIV/0!"}},{"$f":"COUNTIF(REGISTRO!$N$8:$N$1142,C46)","v":0},{"$f":"COUNTIFS(REGISTRO!$N$8:$N$1141,C46,REGISTRO!$L$8:$L$1141,\"<=1\")","v":0},{"$f":"F46-G46","v":0}]
["Mas de 24 horas",null,{"$f":"[2]REGISTRO!N1011","v":"BAJA"},null,{"$f":"F47/F48","v":{"$error":"#DIV/0!"}},{"$f":"COUNTIF(REGISTRO!$N$8:$N$1142,C47)","v":0},{"$f":"COUNTIFS(REGISTRO!$N$8:$N$1141,C47,REGISTRO!$L$8:$L$1141,\">0\")","v":0},{"$f":"F47-G47","v":0}]
[null,null,"TOTAL DEL MES",null,{"$f":"SUM(E45:E47)","v":{"$error":"#DIV/0!"}},{"$f":"SUM(F45:F47)","v":0},{"$f":"SUM(G45:G47)","v":0},{"$f":"SUM(H45:H47)","v":0}]

{"sheet":"ESTADISTICAS2","index":2,"n_rows":181,"n_cols":7,"rows_kept":181,"cut":false,"hidden":false,"merged":[[0,0,0,2],[34,0,34,2],[172,1,172,3],[143,1,144,1],[144,2,144,6]]}
["INTERVENSIONES"]
["PORCENTAJE","INTERVENSIÓN REALIZADA POR","TOTAL"]
[{"$f":"C3/$C$28","v":{"$error":"#DIV/0!"}},"ÁREA DE SISTEMAS",{"$f":"COUNTIF(REGISTRO!$O$8:$O$1141,B3)","v":0}]
[{"$f":"C4/$C$28","v":{"$error":"#DIV/0!"}},"CADISOFT",{"$f":"COUNTIF(REGISTRO!$O$8:$O$1141,B4)","v":0}]
[{"$error":"#DIV/0!"},"COLOMBIAHOSTING",{"$f":"COUNTIF(REGISTRO!$O$8:$O$1141,B5)","v":0}]
[{"$error":"#DIV/0!"},"DISATEL LTDA",{"$f":"COUNTIF(REGISTRO!$O$8:$O$1141,B6)","v":0}]
[{"$error":"#DIV/0!"},"GEMINUS",{"$f":"COUNTIF(REGISTRO!$O$8:$O$1141,B7)","v":0}]
[{"$error":"#DIV/0!"},"GLOBALDOC",{"$f":"COUNTIF(REGISTRO!$O$8:$O$1141,B8)","v":0}]
[{"$error":"#DIV/0!"},"IKONO",{"$f":"COUNTIF(REGISTRO!$O$8:$O$1141,B9)","v":0}]
[{"$error":"#DIV/0!"},"INGETRONIK",{"$f":"COUNTIF(REGISTRO!$O$8:$O$1141,B10)","v":0}]
[{"$error":"#DIV/0!"},"LENOVO",{"$f":"COUNTIF(REGISTRO!$O$8:$O$1141,B11)","v":0}]
[{"$error":"#DIV/0!"},"MAGISOFT",{"$f":"COUNTIF(REGISTRO!$O$8:$O$1141,B12)","v":0}]
[{"$error":"#DIV/0!"},"NELSON TANGARIFE",{"$f":"COUNTIF(REGISTRO!$O$8:$O$1141,B13)","v":0}]
[{"$error":"#DIV/0!"},"PUNTOEXE",{"$f":"COUNTIF(REGISTRO!$O$8:$O$1141,B14)","v":0}]
[{"$error":"#DIV/0!"},"SALUDNET",{"$f":"COUNTIF(REGISTRO!$O$8:$O$1141,B15)","v":0}]
[{"$error":"#DIV/0!"},"SEBLIN",{"$f":"COUNTIF(REGISTRO!$O$8:$O$1141,B16)","v":0}]
[{"$error":"#DIV/0!"},"TÉCNICO EN TELEFONÍA",{"$f":"COUNTIF(REGISTRO!$O$8:$O$1141,B17)","v":0}]
[{"$error":"#DIV/0!"},"TÉCNICO EN TELEVISIÓN",{"$f":"COUNTIF(REGISTRO!$O$8:$O$1141,B18)","v":0}]
[{"$error":"#DIV/0!"},"UNE TLEFÓNICA DE PEREIRA",{"$f":"COUNTIF(REGISTRO!$O$8:$O$1141,B19)","v":0}]
[{"$error":"#DIV/0!"},"UPS SERVICIOS",{"$f":"COUNTIF(REGISTRO!$O$8:$O$1141,B20)","v":0}]
[{"$error":"#DIV/0!"},"HDO",{"$f":"COUNTIF(REGISTRO!$O$8:$O$1141,B21)","v":0}]
[{"$error":"#DIV/0!"},"JHON EIDER",{"$f":"COUNTIF(REGISTRO!$O$8:$O$1141,B22)","v":0}]
[{"$error":"#DIV/0!"},null,{"$f":"COUNTIF(REGISTRO!$O$8:$O$1141,B23)","v":0}]
[{"$error":"#DIV/0!"},null,{"$f":"COUNTIF(REGISTRO!$O$8:$O$1141,B24)","v":0}]
[{"$error":"#DIV/0!"},null,{"$f":"COUNTIF(REGISTRO!$O$8:$O$1141,B25)","v":0}]
[{"$error":"#DIV/0!"},null,{"$f":"COUNTIF(REGISTRO!$O$8:$O$1141,B26)","v":0}]
[{"$error":"#DIV/0!"},null,{"$f":"COUNTIF(REGISTRO!$O$8:$O$1141,B27)","v":0}]
[{"$f":"SUM(A3:A27)","v":{"$error":"#DIV/0!"}},"TOTAL",{"$f":"SUM(C3:C27)","v":0}]
[]
[]
[]
[]
[]
[]
["ESTADÍSCAS SEGÚN RECURSOS O EQUIPOS INTERVENIDOS"]
["PORCENTAJE","TIPO DE INTERVENIDO","TOTAL"]
[{"$f":"C37/$C$107","v":{"$error":"#DIV/0!"}},"BASE DE DATOS MYSQL",{"$f":"COUNTIF(REGISTRO!$F$8:$F$1142,B37)","v":0}]
[{"$error":"#DIV/0!"},"COPIA DE SEGURIDAD",{"$f":"COUNTIF(REGISTRO!$F$8:$F$1142,B38)","v":0}]
[{"$error":"#DIV/0!"},"CABLEADO DE RED",{"$f":"COUNTIF(REGISTRO!$F$8:$F$1142,B39)","v":0}]
[{"$error":"#DIV/0!"},"CABLEADO TELEFONÍA",{"$f":"COUNTIF(REGISTRO!$F$8:$F$1142,B40)","v":0}]
[{"$error":"#DIV/0!"},"CABLEADO TELEVISIÓN",{"$f":"COUNTIF(REGISTRO!$F$8:$F$1142,B41)","v":0}]
[{"$error":"#DIV/0!"},"CÁMARAS DE SEGURIDAD",{"$f":"COUNTIF(REGISTRO!$F$8:$F$1142,B42)","v":0}]
[{"$error":"#DIV/0!"},"COMPRA",{"$f":"COUNTIF(REGISTRO!$F$8:$F$1142,B43)","v":0}]
[{"$error":"#DIV/0!"},"COMPUTADOR TODO EN UNO",{"$f":"COUNTIF(REGISTRO!$F$8:$F$1142,B44)","v":0}]
[{"$error":"#DIV/0!"},"CONEXIÓN ELECTRICA",{"$f":"COUNTIF(REGISTRO!$F$8:$F$1142,B45)","v":0}]
[{"$error":"#DIV/0!"},"CONFIGURACIÓN CORREO",{"$f":"COUNTIF(REGISTRO!$F$8:$F$1142,B46)","v":0}]
[{"$error":"#DIV/0!"},"CONFIGURACIÓN HARDWARE",{"$f":"COUNTIF(REGISTRO!$F$8:$F$1142,B47)","v":0}]
[{"$error":"#DIV/0!"},"CONFIGURACIÓN SOFTWARE",{"$f":"COUNTIF(REGISTRO!$F$8:$F$1142,B48)","v":0}]
[{"$error":"#DIV/0!"},"COTIZACIÓN",{"$f":"COUNTIF(REGISTRO!$F$8:$F$1142,B49)","v":0}]
[{"$error":"#DIV/0!"},"CPD SEDE MEGA CENTRO PINARES",{"$f":"COUNTIF(REGISTRO!$F$8:$F$1142,B50)","v":0}]
[{"$error":"#DIV/0!"},"CPD SEDE PRINCIPAL",{"$f":"COUNTIF(REGISTRO!$F$8:$F$1142,B51)","v":0}]
[{"$error":"#DIV/0!"},"DISCO DURO",{"$f":"COUNTIF(REGISTRO!$F$8:$F$1142,B52)","v":0}]
[{"$error":"#DIV/0!"},"DISCO EXTERNO",{"$f":"COUNTIF(REGISTRO!$F$8:$F$1142,B53)","v":0}]
[{"$error":"#DIV/0!"},"DVRS",{"$f":"COUNTIF(REGISTRO!$F$8:$F$1142,B54)","v":0}]
[{"$error":"#DIV/0!"},"EDICION DE DOCUMENTOS",{"$f":"COUNTIF(REGISTRO!$F$8:$F$1142,B55)","v":0}]
[{"$error":"#DIV/0!"},"EQUIPO EN DOMINIO",{"$f":"COUNTIF(REGISTRO!$F$8:$F$1142,B56)","v":0}]
[{"$error":"#DIV/0!"},"ESCANER - MULTIFUNCIÓN",{"$f":"COUNTIF(REGISTRO!$F$8:$F$1142,B57)","v":0}]
[{"$error":"#DIV/0!"},"EYEBEAM",{"$f":"COUNTIF(REGISTRO!$F$8:$F$1142,B58)","v":0}]
[{"$error":"#DIV/0!"},"FACTSALUD",{"$f":"COUNTIF(REGISTRO!$F$8:$F$1142,B59)","v":0}]
[{"$error":"#DIV/0!"},"FALLO ELÉCTRICO",{"$f":"COUNTIF(REGISTRO!$F$8:$F$1142,B60)","v":0}]
[{"$error":"#DIV/0!"},"HOSPIVISUAL",{"$f":"COUNTIF(REGISTRO!$F$8:$F$1142,B61)","v":0}]
[{"$error":"#DIV/0!"},"IMPRESORA EN RED",{"$f":"COUNTIF(REGISTRO!$F$8:$F$1142,B62)","v":0}]
[{"$error":"#DIV/0!"},"IMPRESORA LOCAL",{"$f":"COUNTIF(REGISTRO!$F$8:$F$1142,B63)","v":0}]
[{"$error":"#DIV/0!"},"IMPRESORA MATRICIAL",{"$f":"COUNTIF(REGISTRO!$F$8:$F$1142,B64)","v":0}]
[{"$error":"#DIV/0!"},"INGRESO DE USUARIOS",{"$f":"COUNTIF(REGISTRO!$F$8:$F$1142,B65)","v":0}]
[{"$error":"#DIV/0!"},"INSTALACIÓN HARDWARE",{"$f":"COUNTIF(REGISTRO!$F$8:$F$1142,B66)","v":0}]
[{"$error":"#DIV/0!"},"INSTALACIÓN SOFTWARE",{"$f":"COUNTIF(REGISTRO!$F$8:$F$1142,B67)","v":0}]
[{"$error":"#DIV/0!"},"INTERNET",{"$f":"COUNTIF(REGISTRO!$F$8:$F$1142,B68)","v":0}]
[{"$f":"C69/$C$107","v":{"$error":"#DIV/0!"}},"INSTALACION DE EQUIPOS",{"$f":"COUNTIF(REGISTRO!$F$8:$F$1142,B69)","v":0}]
[{"$error":"#DIV/0!"},"LAN MESSENGER",{"$f":"COUNTIF(REGISTRO!$F$8:$F$1142,B70)","v":0}]
[{"$error":"#DIV/0!"},"LECTOR BIOMÉTRICO",{"$f":"COUNTIF(REGISTRO!$F$8:$F$1142,B71)","v":0}]
[{"$error":"#DIV/0!"},"MANEJO DE SOFTWARE",{"$f":"COUNTIF(REGISTRO!$F$8:$F$1142,B72)","v":0}]
[{"$error":"#DIV/0!"},"MANTENIMIENTO CORRECTIVO",{"$f":"COUNTIF(REGISTRO!$F$8:$F$1142,B73)","v":0}]
[{"$error":"#DIV/0!"},"MANTENIMIENTO PREVENTIVO",{"$f":"COUNTIF(REGISTRO!$F$8:$F$1142,B74)","v":0}]
[{"$error":"#DIV/0!"},"MEMORIA USB",{"$f":"COUNTIF(REGISTRO!$F$8:$F$1142,B75)","v":0}]
[{"$error":"#DIV/0!"},"MODIFICACION WEB",{"$f":"COUNTIF(REGISTRO!$F$8:$F$1142,B76)","v":0}]
[{"$error":"#DIV/0!"},"MONITOR LCD",{"$f":"COUNTIF(REGISTRO!$F$8:$F$1142,B77)","v":0}]
[{"$error":"#DIV/0!"},"MONITOR TFT",{"$f":"COUNTIF(REGISTRO!$F$8:$F$1142,B78)","v":0}]
[{"$error":"#DIV/0!"},"OFFICE",{"$f":"COUNTIF(REGISTRO!$F$8:$F$1142,B79)","v":0}]
[{"$error":"#DIV/0!"},"PERIFÉRICOS",{"$f":"COUNTIF(REGISTRO!$F$8:$F$1142,B80)","v":0}]
[{"$error":"#DIV/0!"},"PRÉSTAMO PC ESCRITORIO",{"$f":"COUNTIF(REGISTRO!$F$8:$F$1142,B81)","v":0}]
[{"$error":"#DIV/0!"},"PRÉSTAMO PORTATIL",{"$f":"COUNTIF(REGISTRO!$F$8:$F$1142,B82)","v":0}]
[{"$error":"#DIV/0!"},"RATÓN",{"$f":"COUNTIF(REGISTRO!$F$8:$F$1142,B83)","v":0}]
[{"$error":"#DIV/0!"},"RED",{"$f":"COUNTIF(REGISTRO!$F$8:$F$1142,B84)","v":0}]
[{"$error":"#DIV/0!"},"REDES SOCIALES",{"$f":"COUNTIF(REGISTRO!$F$8:$F$1142,B85)","v":0}]
[{"$error":"#DIV/0!"},"REPARACIÓN HARDWARE",{"$f":"COUNTIF(REGISTRO!$F$8:$F$1142,B86)","v":0}]
[{"$error":"#DIV/0!"},"RUAF",{"$f":"COUNTIF(REGISTRO!$F$8:$F$1142,B87)","v":0}]
[{"$error":"#DIV/0!"},"SEO",{"$f":"COUNTIF(REGISTRO!$F$8:$F$1142,B88)","v":0}]
[{"$error":"#DIV/0!"},"SISTEMA OPERATIVO",{"$f":"COUNTIF(REGISTRO!$F$8:$F$1142,B89)","v":0}]
[{"$error":"#DIV/0!"},"SOCIALIZACIÓN / CAPACITACIÓN",{"$f":"COUNTIF(REGISTRO!$F$8:$F$1142,B90)","v":0}]
[{"$error":"#DIV/0!"},"SOFTPHONE UNE",{"$f":"COUNTIF(REGISTRO!$F$8:$F$1142,B91)","v":0}]
[{"$error":"#DIV/0!"},"SUMINISTROS",{"$f":"COUNTIF(REGISTRO!$F$8:$F$1142,B92)","v":0}]
[{"$error":"#DIV/0!"},"SWITCH",{"$f":"COUNTIF(REGISTRO!$F$8:$F$1142,B93)","v":0}]
[{"$error":"#DIV/0!"},"TECLADO",{"$f":"COUNTIF(REGISTRO!$F$8:$F$1142,B94)","v":0}]
[{"$error":"#DIV/0!"},"TELÉFONOS",{"$f":"COUNTIF(REGISTRO!$F$8:$F$1142,B95)","v":0}]
[{"$error":"#DIV/0!"},"TELEVISORES",{"$f":"COUNTIF(REGISTRO!$F$8:$F$1142,B96)","v":0}]
[{"$error":"#DIV/0!"},"TONER",{"$f":"COUNTIF(REGISTRO!$F$8:$F$1142,B97)","v":0}]
[{"$error":"#DIV/0!"},"TORRE COMPUTADOR",{"$f":"COUNTIF(REGISTRO!$F$8:$F$1142,B98)","v":0}]
[{"$error":"#DIV/0!"},"TURNERO",{"$f":"COUNTIF(REGISTRO!$F$8:$F$1142,B99)","v":0}]
[{"$error":"#DIV/0!"},"TRASLADO EQUIPO",{"$f":"COUNTIF(REGISTRO!$F$8:$F$1142,B100)","v":0}]
[{"$f":"C101/$C$107","v":{"$error":"#DIV/0!"}},"TRASLADO DE DATOS",{"$f":"COUNTIF(REGISTRO!$F$8:$F$1142,B101)","v":0}]
[{"$error":"#DIV/0!"},"UNIDAD DE RED COMPARTIDA",{"$f":"COUNTIF(REGISTRO!$F$8:$F$1142,B102)","v":0}]
[{"$error":"#DIV/0!"},"USUARIO EN DOMINIO",{"$f":"COUNTIF(REGISTRO!$F$8:$F$1142,B103)","v":0}]
[{"$error":"#DIV/0!"},"VIRUS",{"$f":"COUNTIF(REGISTRO!$F$8:$F$1142,B104)","v":0}]
[{"$error":"#DIV/0!"},"VPN",{"$f":"COUNTIF(REGISTRO!$F$8:$F$1142,B105)","v":0}]
[{"$error":"#DIV/0!"},"VULNERABILIDAD DE LA INFORMACIÓN",{"$f":"COUNTIF(REGISTRO!$F$8:$F$1142,B106)","v":0}]
[{"$error":"#DIV/0!"},"WEBCAM",{"$f":"COUNTIF(REGISTRO!$F$8:$F$1142,B107)","v":0}]
[{"$f":"SUM(A37:A107)","v":{"$error":"#DIV/0!"}},"TOTAL",{"$f":"SUM(C37:C107)","v":0}]
[]
[]
[null,"ESTADO","TOTAL"]
[null,"INCIDENTES ATENDIDOS",{"$f":"CountCcolor(REGISTRO!I8:I1141,ESTADISTICAS2!B112)","v":0}]
[null,"INCIDENTES EN ESPERA",{"$f":"CountCcolor(REGISTRO!I8:I1141,ESTADISTICAS2!B113)","v":0}]
[null,"INCIDENTES NO RESUELTOS",{"$f":"CountCcolor(REGISTRO!I8:I1141,ESTADISTICAS2!B114)","v":0}]
[null,"EN ESPERA POR PROVEEDOR EXTERNO",{"$f":"CountCcolor(REGISTRO!I8:I1141,ESTADISTICAS2!B115)","v":0}]
[null,"TOTAL",{"$f":"SUM(C112:C115)","v":0}]
[]
[null,"ESTADO","TOTAL"]
[null,"INCIDENTES ATENDIDOS",{"$f":"C112/$C$116","v":{"$error":"#DIV/0!"}}]
[null,"INCIDENTES EN ESPERA",{"$f":"C113/$C$116","v":{"$error":"#DIV/0!"}}]
[null,"INCIDENTES NO RESUELTOS",{"$f":"C114/$C$116","v":{"$error":"#DIV/0!"}}]
[null,"EN ESPERA POR PROVEEDOR EXTERNO",{"$f":"C115/$C$116","v":{"$error":"#DIV/0!"}}]
[null,"TOTAL",{"$f":"SUM(C119:C122)","v":{"$error":"#DIV/0!"}}]
[]
[null,null,"MENOS DE 24 HORAS","ENTRE 24 Y 160 HORAS","ENTRE 160 Y 720 HH","MAS DE 720 HORAS","ESPERA"]
[null,"ÁREA DE SISTEMAS",{"$f":"COUNTIFS(REGISTRO!$O$8:$O$1141,B126,REGISTRO!$L$8:$L$1141,\"<=1\",REGISTRO!$L$8:$L$1141,\">0\")","v":0},{"$f":"COUNTIFS(REGISTRO!$O$8:$O$1141,B126,REGISTRO!$L$8:$L$1141,\"<=7\",REGISTRO!$L$8:$L$1141,\">1\")","v":0},{"$f":"COUNTIFS(REGISTRO!$O$8:$O$1141,B126,REGISTRO!$L$8:$L$1141,\"<=30\",REGISTRO!$L$8:$L$1141,\">7\")","v":0},{"$f":"COUNTIFS(REGISTRO!$O$8:$O$1141,C126,REGISTRO!$L$8:$L$1141,\">30\")","v":0},{"$f":"C3-(C126+D126+E126+F126)","v":0}]
[null,"CADISOFT",{"$f":"COUNTIFS(REGISTRO!$O$8:$O$1141,B127,REGISTRO!$L$8:$L$1141,\"<=1\",REGISTRO!$L$8:$L$1141,\">0\")","v":0},{"$f":"COUNTIFS(REGISTRO!$O$8:$O$1141,B127,REGISTRO!$L$8:$L$1141,\"<=7\",REGISTRO!$L$8:$L$1141,\">1\")","v":0},{"$f":"COUNTIFS(REGISTRO!$O$8:$O$1141,B127,REGISTRO!$L$8:$L$1141,\"<=30\",REGISTRO!$L$8:$L$1141,\">7\")","v":0},{"$f":"COUNTIFS(REGISTRO!$O$8:$O$1141,C127,REGISTRO!$L$8:$L$1141,\">30\")","v":0},0]
[null,"COLOMBIAHOSTING",{"$f":"COUNTIFS(REGISTRO!$O$8:$O$1141,B128,REGISTRO!$L$8:$L$1141,\"<=1\",REGISTRO!$L$8:$L$1141,\">0\")","v":0},{"$f":"COUNTIFS(REGISTRO!$O$8:$O$1141,B128,REGISTRO!$L$8:$L$1141,\"<=7\",REGISTRO!$L$8:$L$1141,\">1\")","v":0},{"$f":"COUNTIFS(REGISTRO!$O$8:$O$1141,B128,REGISTRO!$L$8:$L$1141,\"<=30\",REGISTRO!$L$8:$L$1141,\">7\")","v":0},{"$f":"COUNTIFS(REGISTRO!$O$8:$O$1141,C128,REGISTRO!$L$8:$L$1141,\">30\")","v":0},0]
[null,"DISATEL LTDA",{"$f":"COUNTIFS(REGISTRO!$O$8:$O$1141,B129,REGISTRO!$L$8:$L$1141,\"<=1\",REGISTRO!$L$8:$L$1141,\">0\")","v":0},{"$f":"COUNTIFS(REGISTRO!$O$8:$O$1141,B129,REGISTRO!$L$8:$L$1141,\"<=7\",REGISTRO!$L$8:$L$1141,\">1\")","v":0},{"$f":"COUNTIFS(REGISTRO!$O$8:$O$1141,B129,REGISTRO!$L$8:$L$1141,\"<=30\",REGISTRO!$L$8:$L$1141,\">7\")","v":0},{"$f":"COUNTIFS(REGISTRO!$O$8:$O$1141,C129,REGISTRO!$L$8:$L$1141,\">30\")","v":0},0]
[null,"GEMINUS",{"$f":"COUNTIFS(REGISTRO!$O$8:$O$1141,B130,REGISTRO!$L$8:$L$1141,\"<=1\",REGISTRO!$L$8:$L$1141,\">0\")","v":0},{"$f":"COUNTIFS(REGISTRO!$O$8:$O$1141,B130,REGISTRO!$L$8:$L$1141,\"<=7\",REGISTRO!$L$8:$L$1141,\">1\")","v":0},{"$f":"COUNTIFS(REGISTRO!$O$8:$O$1141,B130,REGISTRO!$L$8:$L$1141,\"<=30\",REGISTRO!$L$8:$L$1141,\">7\")","v":0},{"$f":"COUNTIFS(REGISTRO!$O$8:$O$1141,C130,REGISTRO!$L$8:$L$1141,\">30\")","v":0},0]
[null,"GLOBALDOC",{"$f":"COUNTIFS(REGISTRO!$O$8:$O$1141,B131,REGISTRO!$L$8:$L$1141,\"<=1\",REGISTRO!$L$8:$L$1141,\">0\")","v":0},{"$f":"COUNTIFS(REGISTRO!$O$8:$O$1141,B131,REGISTRO!$L$8:$L$1141,\"<=7\",REGISTRO!$L$8:$L$1141,\">1\")","v":0},{"$f":"COUNTIFS(REGISTRO!$O$8:$O$1141,B131,REGISTRO!$L$8:$L$1141,\"<=30\",REGISTRO!$L$8:$L$1141,\">7\")","v":0},{"$f":"COUNTIFS(REGISTRO!$O$8:$O$1141,C131,REGISTRO!$L$8:$L$1141,\">30\")","v":0},0]
[null,"IKONO",{"$f":"COUNTIFS(REGISTRO!$O$8:$O$1141,B132,REGISTRO!$L$8:$L$1141,\"<=1\",REGISTRO!$L$8:$L$1141,\">0\")","v":0},{"$f":"COUNTIFS(REGISTRO!$O$8:$O$1141,B132,REGISTRO!$L$8:$L$1141,\"<=7\",REGISTRO!$L$8:$L$1141,\">1\")","v":0},{"$f":"COUNTIFS(REGISTRO!$O$8:$O$1141,B132,REGISTRO!$L$8:$L$1141,\"<=30\",REGISTRO!$L$8:$L$1141,\">7\")","v":0},{"$f":"COUNTIFS(REGISTRO!$O$8:$O$1141,C132,REGISTRO!$L$8:$L$1141,\">30\")","v":0},0]
[null,"INGETRONIK",{"$f":"COUNTIFS(REGISTRO!$O$8:$O$1141,B133,REGISTRO!$L$8:$L$1141,\"<=1\",REGISTRO!$L$8:$L$1141,\">0\")","v":0},{"$f":"COUNTIFS(REGISTRO!$O$8:$O$1141,B133,REGISTRO!$L$8:$L$1141,\"<=7\",REGISTRO!$L$8:$L$1141,\">1\")","v":0},{"$f":"COUNTIFS(REGISTRO!$O$8:$O$1141,B133,REGISTRO!$L$8:$L$1141,\"<=30\",REGISTRO!$L$8:$L$1141,\">7\")","v":0},{"$f":"COUNTIFS(REGISTRO!$O$8:$O$1141,C133,REGISTRO!$L$8:$L$1141,\">30\")","v":0},0]
[null,"LENOVO",{"$f":"COUNTIFS(REGISTRO!$O$8:$O$1141,B134,REGISTRO!$L$8:$L$1141,\"<=1\",REGISTRO!$L$8:$L$1141,\">0\")","v":0},{"$f":"COUNTIFS(REGISTRO!$O$8:$O$1141,B134,REGISTRO!$L$8:$L$1141,\"<=7\",REGISTRO!$L$8:$L$1141,\">1\")","v":0},{"$f":"COUNTIFS(REGISTRO!$O$8:$O$1141,B134,REGISTRO!$L$8:$L$1141,\"<=30\",REGISTRO!$L$8:$L$1141,\">7\")","v":0},{"$f":"COUNTIFS(REGISTRO!$O$8:$O$1141,C134,REGISTRO!$L$8:$L$1141,\">30\")","v":0},0]
[null,"MAGISOFT",{"$f":"COUNTIFS(REGISTRO!$O$8:$O$1141,B135,REGISTRO!$L$8:$L$1141,\"<=1\",REGISTRO!$L$8:$L$1141,\">0\")","v":0},{"$f":"COUNTIFS(REGISTRO!$O$8:$O$1141,B135,REGISTRO!$L$8:$L$1141,\"<=7\",REGISTRO!$L$8:$L$1141,\">1\")","v":0},{"$f":"COUNTIFS(REGISTRO!$O$8:$O$1141,B135,REGISTRO!$L$8:$L$1141,\"<=30\",REGISTRO!$L$8:$L$1141,\">7\")","v":0},{"$f":"COUNTIFS(REGISTRO!$O$8:$O$1141,C135,REGISTRO!$L$8:$L$1141,\">30\")","v":0},0]
[null,"NELSON TANGARIFE",{"$f":"COUNTIFS(REGISTRO!$O$8:$O$1141,B136,REGISTRO!$L$8:$L$1141,\"<=1\",REGISTRO!$L$8:$L$1141,\">0\")","v":0},{"$f":"COUNTIFS(REGISTRO!$O$8:$O$1141,B136,REGISTRO!$L$8:$L$1141,\"<=7\",REGISTRO!$L$8:$L$1141,\">1\")","v":0},{"$f":"COUNTIFS(REGISTRO!$O$8:$O$1141,B136,REGISTRO!$L$8:$L$1141,\"<=30\",REGISTRO!$L$8:$L$1141,\">7\")","v":0},{"$f":"COUNTIFS(REGISTRO!$O$8:$O$1141,C136,REGISTRO!$L$8:$L$1141,\">30\")","v":0},0]
[null,"PUNTOEXE",{"$f":"COUNTIFS(REGISTRO!$O$8:$O$1141,B137,REGISTRO!$L$8:$L$1141,\"<=1\",REGISTRO!$L$8:$L$1141,\">0\")","v":0},{"$f":"COUNTIFS(REGISTRO!$O$8:$O$1141,B137,REGISTRO!$L$8:$L$1141,\"<=7\",REGISTRO!$L$8:$L$1141,\">1\")","v":0},{"$f":"COUNTIFS(REGISTRO!$O$8:$O$1141,B137,REGISTRO!$L$8:$L$1141,\"<=30\",REGISTRO!$L$8:$L$1141,\">7\")","v":0},{"$f":"COUNTIFS(REGISTRO!$O$8:$O$1141,C137,REGISTRO!$L$8:$L$1141,\">30\")","v":0},0]
[null,"SALUDNET",{"$f":"COUNTIFS(REGISTRO!$O$8:$O$1141,B138,REGISTRO!$L$8:$L$1141,\"<=1\",REGISTRO!$L$8:$L$1141,\">0\")","v":0},{"$f":"COUNTIFS(REGISTRO!$O$8:$O$1141,B138,REGISTRO!$L$8:$L$1141,\"<=7\",REGISTRO!$L$8:$L$1141,\">1\")","v":0},{"$f":"COUNTIFS(REGISTRO!$O$8:$O$1141,B138,REGISTRO!$L$8:$L$1141,\"<=30\",REGISTRO!$L$8:$L$1141,\">7\")","v":0},{"$f":"COUNTIFS(REGISTRO!$O$8:$O$1141,C138,REGISTRO!$L$8:$L$1141,\">30\")","v":0},0]
[null,"SEBLIN",{"$f":"COUNTIFS(REGISTRO!$O$8:$O$1141,B139,REGISTRO!$L$8:$L$1141,\"<=1\",REGISTRO!$L$8:$L$1141,\">0\")","v":0},{"$f":"COUNTIFS(REGISTRO!$O$8:$O$1141,B139,REGISTRO!$L$8:$L$1141,\"<=7\",REGISTRO!$L$8:$L$1141,\">1\")","v":0},{"$f":"COUNTIFS(REGISTRO!$O$8:$O$1141,B139,REGISTRO!$L$8:$L$1141,\"<=30\",REGISTRO!$L$8:$L$1141,\">7\")","v":0},{"$f":"COUNTIFS(REGISTRO!$O$8:$O$1141,C139,REGISTRO!$L$8:$L$1141,\">30\")","v":0},0]
[null,"TÉCNICO EN TELEFONÍA",{"$f":"COUNTIFS(REGISTRO!$O$8:$O$1141,B140,REGISTRO!$L$8:$L$1141,\"<=1\",REGISTRO!$L$8:$L$1141,\">0\")","v":0},{"$f":"COUNTIFS(REGISTRO!$O$8:$O$1141,B140,REGISTRO!$L$8:$L$1141,\"<=7\",REGISTRO!$L$8:$L$1141,\">1\")","v":0},{"$f":"COUNTIFS(REGISTRO!$O$8:$O$1141,B140,REGISTRO!$L$8:$L$1141,\"<=30\",REGISTRO!$L$8:$L$1141,\">7\")","v":0},{"$f":"COUNTIFS(REGISTRO!$O$8:$O$1141,C140,REGISTRO!$L$8:$L$1141,\">30\")","v":0},0]
[null,"TÉCNICO EN TELEVISIÓN",{"$f":"COUNTIFS(REGISTRO!$O$8:$O$1141,B141,REGISTRO!$L$8:$L$1141,\"<=1\",REGISTRO!$L$8:$L$1141,\">0\")","v":0},{"$f":"COUNTIFS(REGISTRO!$O$8:$O$1141,B141,REGISTRO!$L$8:$L$1141,\"<=7\",REGISTRO!$L$8:$L$1141,\">1\")","v":0},{"$f":"COUNTIFS(REGISTRO!$O$8:$O$1141,B141,REGISTRO!$L$8:$L$1141,\"<=30\",REGISTRO!$L$8:$L$1141,\">7\")","v":0},{"$f":"COUNTIFS(REGISTRO!$O$8:$O$1141,C141,REGISTRO!$L$8:$L$1141,\">30\")","v":0},0]
[null,"UNE TLEFÓNICA DE PEREIRA",{"$f":"COUNTIFS(REGISTRO!$O$8:$O$1141,B142,REGISTRO!$L$8:$L$1141,\"<=1\",REGISTRO!$L$8:$L$1141,\">0\")","v":0},{"$f":"COUNTIFS(REGISTRO!$O$8:$O$1141,B142,REGISTRO!$L$8:$L$1141,\"<=7\",REGISTRO!$L$8:$L$1141,\">1\")","v":0},{"$f":"COUNTIFS(REGISTRO!$O$8:$O$1141,B142,REGISTRO!$L$8:$L$1141,\"<=30\",REGISTRO!$L$8:$L$1141,\">7\")","v":0},{"$f":"COUNTIFS(REGISTRO!$O$8:$O$1141,C142,REGISTRO!$L$8:$L$1141,\">30\")","v":0},{"$f":"C19-(C142+D142+E142+F142)","v":0}]
[null,"UPS SERVICIOS",{"$f":"COUNTIFS(REGISTRO!$O$8:$O$1141,B143,REGISTRO!$L$8:$L$1141,\"<=1\",REGISTRO!$L$8:$L$1141,\">0\")","v":0},{"$f":"COUNTIFS(REGISTRO!$O$8:$O$1141,B143,REGISTRO!$L$8:$L$1141,\"<=7\",REGISTRO!$L$8:$L$1141,\">1\")","v":0},{"$f":"COUNTIFS(REGISTRO!$O$8:$O$1141,B143,REGISTRO!$L$8:$L$1141,\"<=30\",REGISTRO!$L$8:$L$1141,\">7\")","v":0},{"$f":"COUNTIFS(REGISTRO!$O$8:$O$1141,C143,REGISTRO!$L$8:$L$1141,\">30\")","v":0},{"$f":"C20-(C143+D143+E143+F143)","v":0}]
[null,"TOTAL",{"$f":"SUM(C126:C143)","v":0},{"$f":"SUM(D126:D143)","v":0},{"$f":"SUM(E126:E143)","v":0},{"$f":"SUM(F126:F141)","v":0},{"$f":"SUM(G126:G141)","v":0}]
[null,null,{"$f":"SUM(C144:G144)","v":0}]
[]
[null,null,"PORCENTAJE EFECTIVIDAD 24 HORAS"]
[null,"ÁREA DE SISTEMAS",{"$f":"C126/C3","v":{"$error":"#DIV/0!"}}]
[null,"CADISOFT",{"$f":"C127/C4","v":{"$error":"#DIV/0!"}}]
[null,"COLOMBIAHOSTING",{"$error":"#DIV/0!"}]
[null,"DISATEL LTDA",{"$error":"#DIV/0!"}]
[null,"GEMINUS",{"$error":"#DIV/0!"}]
[null,"GLOBALDOC",{"$error":"#DIV/0!"}]
[null,"IKONO",{"$error":"#DIV/0!"}]
[null,"INGETRONIK",{"$error":"#DIV/0!"}]
[null,"LENOVO",{"$error":"#DIV/0!"}]
[null,"MAGISOFT",{"$error":"#DIV/0!"}]
[null,"NELSON TANGARIFE",{"$error":"#DIV/0!"}]
[null,"PUNTOEXE",{"$error":"#DIV/0!"}]
[null,"SALUDNET",{"$error":"#DIV/0!"}]
[null,"SEBLIN",{"$error":"#DIV/0!"}]
[null,"TÉCNICO EN TELEFONÍA",{"$error":"#DIV/0!"}]
[null,"TÉCNICO EN TELEVISIÓN",{"$error":"#DIV/0!"}]
[null,"UNE TLEFÓNICA DE PEREIRA",{"$error":"#DIV/0!"}]
[null,"UPS SERVICIOS",{"$error":"#DIV/0!"}]
[null,"TOTAL",{"$f":"SUM(C148:C165)","v":{"$error":"#DIV/0!"}}]
[]
[]
[]
[]
[]
[]
[null,"TIEMPO DE RESPUESTA"]
[null,"TIEMPO  ","NÚMERO INCIDENTES","PORCENTAJE"]
[null,"MENOS DE 24 HORAS",{"$f":"COUNTIFS(REGISTRO!L8:L1142,\"<=1\",REGISTRO!L8:L1142,\">0\")","v":0},{"$f":"C175/$C$181","v":{"$error":"#DIV/0!"}}]
[null,"ENTRE 24 Y 160 HORAS",{"$f":"COUNTIFS(REGISTRO!L8:L1142,\"<7\",REGISTRO!L8:L1142,\">1\")","v":0},{"$error":"#DIV/0!"}]
[null,"ENTRE 160 Y 720 HH",{"$f":"COUNTIFS(REGISTRO!L8:L1142,\"<30\",REGISTRO!L8:L1142,\">=7\")","v":0},{"$error":"#DIV/0!"}]
[null,"MAS DE 720 HORAS",{"$f":"COUNTIF(REGISTRO!L8:L1142,\">=30\")","v":0},{"$error":"#DIV/0!"}]
[null,"PENDIENTES",{"$f":"C113+C114","v":0},{"$error":"#DIV/0!"}]
[null,"ESPERA POR PROVEEDOR",{"$f":"C115","v":0},{"$error":"#DIV/0!"}]
[null,"TOTAL ",{"$f":"SUM(C175:C180)","v":0},{"$f":"SUM(D175:D180)","v":{"$error":"#DIV/0!"}}]

{"sheet":"ESTADISTICAS3","index":3,"n_rows":152,"n_cols":3,"rows_kept":152,"cut":false,"hidden":false,"merged":[]}
["EQUIPO INTERVENIDO","TOTAL","PORCENTAJE"]
["AVISO INFORMATIVO",{"$f":"COUNTIFS(REGISTRO!$E$8:$E$1142,A2)","v":0},{"$f":"B2/$B$152","v":{"$error":"#DIV/0!"}}]
["ADMISIONES1",{"$f":"COUNTIFS(REGISTRO!$E$8:$E$1142,A3)","v":0},{"$error":"#DIV/0!"}]
["ADMISIONES2",{"$f":"COUNTIFS(REGISTRO!$E$8:$E$1142,A4)","v":0},{"$error":"#DIV/0!"}]
["ANTENAS MICROONDAS",{"$f":"COUNTIFS(REGISTRO!$E$8:$E$1142,A5)","v":0},{"$error":"#DIV/0!"}]
["ARCHIVO2",{"$f":"COUNTIFS(REGISTRO!$E$8:$E$1142,A6)","v":0},{"$error":"#DIV/0!"}]
["ASISGERENCIA",{"$f":"COUNTIFS(REGISTRO!$E$8:$E$1142,A7)","v":0},{"$error":"#DIV/0!"}]
["AUXARCHIVO",{"$f":"COUNTIFS(REGISTRO!$E$8:$E$1142,A8)","v":0},{"$error":"#DIV/0!"}]
["AUXCONTABLE",{"$f":"COUNTIFS(REGISTRO!$E$8:$E$1142,A9)","v":0},{"$error":"#DIV/0!"}]
["AUXCONTABLE2",{"$f":"COUNTIFS(REGISTRO!$E$8:$E$1142,A10)","v":0},{"$error":"#DIV/0!"}]
["AUXCUENTASMD",{"$f":"COUNTIFS(REGISTRO!$E$8:$E$1142,A11)","v":0},{"$error":"#DIV/0!"}]
["AUXFACTURACION",{"$f":"COUNTIFS(REGISTRO!$E$8:$E$1142,A12)","v":0},{"$error":"#DIV/0!"}]
["AUXFACTURACION2",{"$f":"COUNTIFS(REGISTRO!$E$8:$E$1142,A13)","v":0},{"$error":"#DIV/0!"}]
["AUXFACTURACION3",{"$f":"COUNTIFS(REGISTRO!$E$8:$E$1142,A14)","v":0},{"$error":"#DIV/0!"}]
["AUXSISTEMAS",{"$f":"COUNTIFS(REGISTRO!$E$8:$E$1142,A15)","v":0},{"$error":"#DIV/0!"}]
["AUXRADICACION",{"$f":"COUNTIFS(REGISTRO!$E$8:$E$1142,A16)","v":0},{"$error":"#DIV/0!"}]
["AUXTALENTOHUMANO",{"$f":"COUNTIFS(REGISTRO!$E$8:$E$1142,A17)","v":0},{"$error":"#DIV/0!"}]
["BIOTECNOLOGIA",{"$f":"COUNTIFS(REGISTRO!$E$8:$E$1142,A18)","v":0},{"$error":"#DIV/0!"}]
["CAJA",{"$f":"COUNTIFS(REGISTRO!$E$8:$E$1142,A19)","v":0},{"$error":"#DIV/0!"}]
["CALIDAD",{"$f":"COUNTIFS(REGISTRO!$E$8:$E$1142,A20)","v":0},{"$error":"#DIV/0!"}]
["CALL1",{"$f":"COUNTIFS(REGISTRO!$E$8:$E$1142,A21)","v":0},{"$error":"#DIV/0!"}]
["CALL2",{"$f":"COUNTIFS(REGISTRO!$E$8:$E$1142,A22)","v":0},{"$error":"#DIV/0!"}]
["CALL3",{"$f":"COUNTIFS(REGISTRO!$E$8:$E$1142,A23)","v":0},{"$error":"#DIV/0!"}]
["CALL4",{"$f":"COUNTIFS(REGISTRO!$E$8:$E$1142,A24)","v":0},{"$error":"#DIV/0!"}]
["CALL5",{"$f":"COUNTIFS(REGISTRO!$E$8:$E$1142,A25)","v":0},{"$error":"#DIV/0!"}]
["CALL6",{"$f":"COUNTIFS(REGISTRO!$E$8:$E$1142,A26)","v":0},{"$error":"#DIV/0!"}]
["CALLCENTER",{"$f":"COUNTIFS(REGISTRO!$E$8:$E$1142,A27)","v":0},{"$error":"#DIV/0!"}]
["CAMARA DE SEGURIDAD",{"$f":"COUNTIFS(REGISTRO!$E$8:$E$1142,A28)","v":0},{"$error":"#DIV/0!"}]
["CONSULTA4",{"$f":"COUNTIFS(REGISTRO!$E$8:$E$1142,A29)","v":0},{"$error":"#DIV/0!"}]
["CONSULTA5",{"$f":"COUNTIFS(REGISTRO!$E$8:$E$1142,A30)","v":0},{"$error":"#DIV/0!"}]
["CONSULTORIO1",{"$f":"COUNTIFS(REGISTRO!$E$8:$E$1142,A31)","v":0},{"$error":"#DIV/0!"}]
["CONSULTORIO2",{"$f":"COUNTIFS(REGISTRO!$E$8:$E$1142,A32)","v":0},{"$error":"#DIV/0!"}]
["CONSULTORIO3",{"$f":"COUNTIFS(REGISTRO!$E$8:$E$1142,A33)","v":0},{"$error":"#DIV/0!"}]
["CONSULTORIO4",{"$f":"COUNTIFS(REGISTRO!$E$8:$E$1142,A34)","v":0},{"$f":"B34/$B$152","v":{"$error":"#DIV/0!"}}]
["CONSULTORIO5",{"$f":"COUNTIFS(REGISTRO!$E$8:$E$1142,A35)","v":0},{"$error":"#DIV/0!"}]
["CONSULTAEXT",{"$f":"COUNTIFS(REGISTRO!$E$8:$E$1142,A36)","v":0},{"$error":"#DIV/0!"}]
["CONTABILIDAD",{"$f":"COUNTIFS(REGISTRO!$E$8:$E$1142,A37)","v":0},{"$error":"#DIV/0!"}]
["COORCIRUGIA",{"$f":"COUNTIFS(REGISTRO!$E$8:$E$1142,A38)","v":0},{"$error":"#DIV/0!"}]
["COORENFERMERIA",{"$f":"COUNTIFS(REGISTRO!$E$8:$E$1142,A39)","v":0},{"$error":"#DIV/0!"}]
["COORMANTENIMIENTO",{"$f":"COUNTIFS(REGISTRO!$E$8:$E$1142,A40)","v":0},{"$error":"#DIV/0!"}]
["CUARTO DE COMUNICACIONES",{"$f":"COUNTIFS(REGISTRO!$E$8:$E$1142,A41)","v":0},{"$error":"#DIV/0!"}]
["CUBICULOS UCI",{"$f":"COUNTIFS(REGISTRO!$E$8:$E$1142,A42)","v":0},{"$error":"#DIV/0!"}]
["CUENTASMEDICAS",{"$f":"COUNTIFS(REGISTRO!$E$8:$E$1142,A43)","v":0},{"$error":"#DIV/0!"}]
["DATAFONO",{"$f":"COUNTIFS(REGISTRO!$E$8:$E$1142,A44)","v":0},{"$error":"#DIV/0!"}]
["DIRMEDICA",{"$f":"COUNTIFS(REGISTRO!$E$8:$E$1142,A45)","v":0},{"$error":"#DIV/0!"}]
["DOMINIO",{"$f":"COUNTIFS(REGISTRO!$E$8:$E$1142,A46)","v":0},{"$error":"#DIV/0!"}]
["DVR1",{"$f":"COUNTIFS(REGISTRO!$E$8:$E$1142,A47)","v":0},{"$error":"#DIV/0!"}]
["DVR2",{"$f":"COUNTIFS(REGISTRO!$E$8:$E$1142,A48)","v":0},{"$error":"#DIV/0!"}]
["DVR3",{"$f":"COUNTIFS(REGISTRO!$E$8:$E$1142,A49)","v":0},{"$error":"#DIV/0!"}]
["DVR4",{"$f":"COUNTIFS(REGISTRO!$E$8:$E$1142,A50)","v":0},{"$error":"#DIV/0!"}]
["DVRS",{"$f":"COUNTIFS(REGISTRO!$E$8:$E$1142,A51)","v":0},{"$error":"#DIV/0!"}]
["ESCANER",{"$f":"COUNTIFS(REGISTRO!$E$8:$E$1142,A52)","v":0},{"$error":"#DIV/0!"}]
["FACTHOSPI",{"$f":"COUNTIFS(REGISTRO!$E$8:$E$1142,A53)","v":0},{"$error":"#DIV/0!"}]
["FACTMDCX",{"$f":"COUNTIFS(REGISTRO!$E$8:$E$1142,A54)","v":0},{"$error":"#DIV/0!"}]
["FACTUCI",{"$f":"COUNTIFS(REGISTRO!$E$8:$E$1142,A55)","v":0},{"$error":"#DIV/0!"}]
["FACTURACION1",{"$f":"COUNTIFS(REGISTRO!$E$8:$E$1142,A56)","v":0},{"$error":"#DIV/0!"}]
["FACTURACION2",{"$f":"COUNTIFS(REGISTRO!$E$8:$E$1142,A57)","v":0},{"$error":"#DIV/0!"}]
["FACTURACIONCX",{"$f":"COUNTIFS(REGISTRO!$E$8:$E$1142,A58)","v":0},{"$error":"#DIV/0!"}]
["FARMACIA",{"$f":"COUNTIFS(REGISTRO!$E$8:$E$1142,A59)","v":0},{"$error":"#DIV/0!"}]
["FARMACIA2",{"$f":"COUNTIFS(REGISTRO!$E$8:$E$1142,A60)","v":0},{"$error":"#DIV/0!"}]
["FOTOCOPIADORA",{"$f":"COUNTIFS(REGISTRO!$E$8:$E$1142,A61)","v":0},{"$error":"#DIV/0!"}]
["FUENTE DE PODER",{"$f":"COUNTIFS(REGISTRO!$E$8:$E$1142,A62)","v":0},{"$error":"#DIV/0!"}]
["GERENCIA",{"$f":"COUNTIFS(REGISTRO!$E$8:$E$1142,A63)","v":0},{"$error":"#DIV/0!"}]
["HOLTER1",{"$f":"COUNTIFS(REGISTRO!$E$8:$E$1142,A64)","v":0},{"$error":"#DIV/0!"}]
["HOLTER2",{"$f":"COUNTIFS(REGISTRO!$E$8:$E$1142,A65)","v":0},{"$error":"#DIV/0!"}]
["HOSPI1P1",{"$f":"COUNTIFS(REGISTRO!$E$8:$E$1142,A66)","v":0},{"$f":"B66/$B$152","v":{"$error":"#DIV/0!"}}]
["HOSPI1P2",{"$f":"COUNTIFS(REGISTRO!$E$8:$E$1142,A67)","v":0},{"$error":"#DIV/0!"}]
["HOSPI2P1",{"$f":"COUNTIFS(REGISTRO!$E$8:$E$1142,A68)","v":0},{"$error":"#DIV/0!"}]
["HOSPI-2P1",{"$f":"COUNTIFS(REGISTRO!$E$8:$E$1142,A69)","v":0},{"$error":"#DIV/0!"}]
["HOSPI2P2",{"$f":"COUNTIFS(REGISTRO!$E$8:$E$1142,A70)","v":0},{"$error":"#DIV/0!"}]
["HOSPI-2P2",{"$f":"COUNTIFS(REGISTRO!$E$8:$E$1142,A71)","v":0},{"$error":"#DIV/0!"}]
["IADMISIONES",{"$f":"COUNTIFS(REGISTRO!$E$8:$E$1142,A72)","v":0},{"$error":"#DIV/0!"}]
["IADMON",{"$f":"COUNTIFS(REGISTRO!$E$8:$E$1142,A73)","v":0},{"$error":"#DIV/0!"}]
["IARCHIVO",{"$f":"COUNTIFS(REGISTRO!$E$8:$E$1142,A74)","v":0},{"$error":"#DIV/0!"}]
["ICAJA",{"$f":"COUNTIFS(REGISTRO!$E$8:$E$1142,A75)","v":0},{"$error":"#DIV/0!"}]
["ICIRUGIA",{"$f":"COUNTIFS(REGISTRO!$E$8:$E$1142,A76)","v":0},{"$error":"#DIV/0!"}]
["IFACTURACION",{"$f":"COUNTIFS(REGISTRO!$E$8:$E$1142,A77)","v":0},{"$error":"#DIV/0!"}]
["IFARMACIA",{"$f":"COUNTIFS(REGISTRO!$E$8:$E$1142,A78)","v":0},{"$error":"#DIV/0!"}]
["IHOLTER",{"$f":"COUNTIFS(REGISTRO!$E$8:$E$1142,A79)","v":0},{"$error":"#DIV/0!"}]
["IHOSPI",{"$f":"COUNTIFS(REGISTRO!$E$8:$E$1142,A80)","v":0},{"$error":"#DIV/0!"}]
["IHOSPI-2",{"$f":"COUNTIFS(REGISTRO!$E$8:$E$1142,A81)","v":0},{"$error":"#DIV/0!"}]
["IMEGA1",{"$f":"COUNTIFS(REGISTRO!$E$8:$E$1142,A82)","v":0},{"$error":"#DIV/0!"}]
["IMEGA2",{"$f":"COUNTIFS(REGISTRO!$E$8:$E$1142,A83)","v":0},{"$error":"#DIV/0!"}]
["IQUIROFANO",{"$f":"COUNTIFS(REGISTRO!$E$8:$E$1142,A84)","v":0},{"$error":"#DIV/0!"}]
["IUCI",{"$f":"COUNTIFS(REGISTRO!$E$8:$E$1142,A85)","v":0},{"$error":"#DIV/0!"}]
["LABORATORIO",{"$f":"COUNTIFS(REGISTRO!$E$8:$E$1142,A86)","v":0},{"$error":"#DIV/0!"}]
["LECTORA CODIGO DE BARRAS",{"$f":"COUNTIFS(REGISTRO!$E$8:$E$1142,A87)","v":0},{"$error":"#DIV/0!"}]
["MANTENIMIENTO",{"$f":"COUNTIFS(REGISTRO!$E$8:$E$1142,A88)","v":0},{"$error":"#DIV/0!"}]
["MEGAADMISIONES1",{"$f":"COUNTIFS(REGISTRO!$E$8:$E$1142,A89)","v":0},{"$error":"#DIV/0!"}]
["MEGAADMISIONES2",{"$f":"COUNTIFS(REGISTRO!$E$8:$E$1142,A90)","v":0},{"$error":"#DIV/0!"}]
["MEGAADMISIONES3",{"$f":"COUNTIFS(REGISTRO!$E$8:$E$1142,A91)","v":0},{"$error":"#DIV/0!"}]
["MEGAADMISIONES4",{"$f":"COUNTIFS(REGISTRO!$E$8:$E$1142,A92)","v":0},{"$error":"#DIV/0!"}]
["MEGAADMISIONES5",{"$f":"COUNTIFS(REGISTRO!$E$8:$E$1142,A93)","v":0},{"$error":"#DIV/0!"}]
["MEGACONSUL1",{"$f":"COUNTIFS(REGISTRO!$E$8:$E$1142,A94)","v":0},{"$error":"#DIV/0!"}]
["MEGACONSUL10",{"$f":"COUNTIFS(REGISTRO!$E$8:$E$1142,A95)","v":0},{"$error":"#DIV/0!"}]
["MEGACONSUL2",{"$f":"COUNTIFS(REGISTRO!$E$8:$E$1142,A96)","v":0},{"$error":"#DIV/0!"}]
["MEGACONSUL3",{"$f":"COUNTIFS(REGISTRO!$E$8:$E$1142,A97)","v":0},{"$error":"#DIV/0!"}]
["MEGACONSUL4",{"$f":"COUNTIFS(REGISTRO!$E$8:$E$1142,A98)","v":0},{"$f":"B98/$B$152","v":{"$error":"#DIV/0!"}}]
["MEGACONSUL5",{"$f":"COUNTIFS(REGISTRO!$E$8:$E$1142,A99)","v":0},{"$error":"#DIV/0!"}]
["MEGACONSUL6",{"$f":"COUNTIFS(REGISTRO!$E$8:$E$1142,A100)","v":0},{"$error":"#DIV/0!"}]
["MEGACONSUL7",{"$f":"COUNTIFS(REGISTRO!$E$8:$E$1142,A101)","v":0},{"$error":"#DIV/0!"}]
["MEGACONSUL8",{"$f":"COUNTIFS(REGISTRO!$E$8:$E$1142,A102)","v":0},{"$error":"#DIV/0!"}]
["MEGACONSUL9",{"$f":"COUNTIFS(REGISTRO!$E$8:$E$1142,A103)","v":0},{"$error":"#DIV/0!"}]
["MEMORIA USB",{"$f":"COUNTIFS(REGISTRO!$E$8:$E$1142,A104)","v":0},{"$error":"#DIV/0!"}]
["MODEM UNE",{"$f":"COUNTIFS(REGISTRO!$E$8:$E$1142,A105)","v":0},{"$error":"#DIV/0!"}]
["MOLINETE BIOMETRICO",{"$f":"COUNTIFS(REGISTRO!$E$8:$E$1142,A106)","v":0},{"$error":"#DIV/0!"}]
["NUEVA ADQUISICION",{"$f":"COUNTIFS(REGISTRO!$E$8:$E$1142,A107)","v":0},{"$error":"#DIV/0!"}]
["OFICINA SISTEMAS",{"$f":"COUNTIFS(REGISTRO!$E$8:$E$1142,A108)","v":0},{"$error":"#DIV/0!"}]
["PARQUEADERO",{"$f":"COUNTIFS(REGISTRO!$E$8:$E$1142,A109)","v":0},{"$error":"#DIV/0!"}]
["PCUENTASMEDICAS",{"$f":"COUNTIFS(REGISTRO!$E$8:$E$1142,A110)","v":0},{"$error":"#DIV/0!"}]
["PFARMACIA",{"$f":"COUNTIFS(REGISTRO!$E$8:$E$1142,A111)","v":0},{"$error":"#DIV/0!"}]
["PORTERIAPPAL",{"$f":"COUNTIFS(REGISTRO!$E$8:$E$1142,A112)","v":0},{"$error":"#DIV/0!"}]
["PQUIROFANO3",{"$f":"COUNTIFS(REGISTRO!$E$8:$E$1142,A113)","v":0},{"$error":"#DIV/0!"}]
["PROGRAMACIONCX",{"$f":"COUNTIFS(REGISTRO!$E$8:$E$1142,A114)","v":0},{"$error":"#DIV/0!"}]
["PROGRAMACIONCX2",{"$f":"COUNTIFS(REGISTRO!$E$8:$E$1142,A115)","v":0},{"$error":"#DIV/0!"}]
["PSANRAFA",{"$f":"COUNTIFS(REGISTRO!$E$8:$E$1142,A116)","v":0},{"$error":"#DIV/0!"}]
["QUIROFANO3",{"$f":"COUNTIFS(REGISTRO!$E$8:$E$1142,A117)","v":0},{"$error":"#DIV/0!"}]
["RACK RED LOCAL",{"$f":"COUNTIFS(REGISTRO!$E$8:$E$1142,A118)","v":0},{"$error":"#DIV/0!"}]
["RACK TELEFÓNICO",{"$f":"COUNTIFS(REGISTRO!$E$8:$E$1142,A119)","v":0},{"$error":"#DIV/0!"}]
["RECEPCION1",{"$f":"COUNTIFS(REGISTRO!$E$8:$E$1142,A120)","v":0},{"$error":"#DIV/0!"}]
["RECEPCION2",{"$f":"COUNTIFS(REGISTRO!$E$8:$E$1142,A121)","v":0},{"$error":"#DIV/0!"}]
["RECEPCION3",{"$f":"COUNTIFS(REGISTRO!$E$8:$E$1142,A122)","v":0},{"$error":"#DIV/0!"}]
["RECUPERACIONCX",{"$f":"COUNTIFS(REGISTRO!$E$8:$E$1142,A123)","v":0},{"$error":"#DIV/0!"}]
["RECUPERACIONCX2",{"$f":"COUNTIFS(REGISTRO!$E$8:$E$1142,A124)","v":0},{"$error":"#DIV/0!"}]
["REFERENCIA",{"$f":"COUNTIFS(REGISTRO!$E$8:$E$1142,A125)","v":0},{"$error":"#DIV/0!"}]
["RUAF",{"$f":"COUNTIFS(REGISTRO!$E$8:$E$1142,A126)","v":0},{"$error":"#DIV/0!"}]
["SALAQX1",{"$f":"COUNTIFS(REGISTRO!$E$8:$E$1142,A127)","v":0},{"$error":"#DIV/0!"}]
["SALAQX2",{"$f":"COUNTIFS(REGISTRO!$E$8:$E$1142,A128)","v":0},{"$error":"#DIV/0!"}]
["SALUDOCUPA",{"$f":"COUNTIFS(REGISTRO!$E$8:$E$1142,A129)","v":0},{"$error":"#DIV/0!"}]
["SERVER",{"$f":"COUNTIFS(REGISTRO!$E$8:$E$1142,A130)","v":0},{"$f":"B130/$B$152","v":{"$error":"#DIV/0!"}}]
["SERVERSALUD",{"$f":"COUNTIFS(REGISTRO!$E$8:$E$1142,A131)","v":0},{"$error":"#DIV/0!"}]
["SERVIDOR",{"$f":"COUNTIFS(REGISTRO!$E$8:$E$1142,A132)","v":0},{"$error":"#DIV/0!"}]
["SERVIDOR NUEVO",{"$f":"COUNTIFS(REGISTRO!$E$8:$E$1142,A133)","v":0},{"$error":"#DIV/0!"}]
["SIAU",{"$f":"COUNTIFS(REGISTRO!$E$8:$E$1142,A134)","v":0},{"$error":"#DIV/0!"}]
["SISTEMAS",{"$f":"COUNTIFS(REGISTRO!$E$8:$E$1142,A135)","v":0},{"$error":"#DIV/0!"}]
["SITIO WEB",{"$f":"COUNTIFS(REGISTRO!$E$8:$E$1142,A136)","v":0},{"$error":"#DIV/0!"}]
["SMARTPHONE - TABLET",{"$f":"COUNTIFS(REGISTRO!$E$8:$E$1142,A137)","v":0},{"$error":"#DIV/0!"}]
["SOCIALIZACIÓN/CAPACITACIÓN",{"$f":"COUNTIFS(REGISTRO!$E$8:$E$1142,A138)","v":0},{"$error":"#DIV/0!"}]
["SOFTWARE HOSPIVISUAL",{"$f":"COUNTIFS(REGISTRO!$E$8:$E$1142,A139)","v":0},{"$error":"#DIV/0!"}]
["SWITCH",{"$f":"COUNTIFS(REGISTRO!$E$8:$E$1142,A140)","v":0},{"$error":"#DIV/0!"}]
["TALENTOHUMANO",{"$f":"COUNTIFS(REGISTRO!$E$8:$E$1142,A141)","v":0},{"$error":"#DIV/0!"}]
["TELÉFONO FIJO",{"$f":"COUNTIFS(REGISTRO!$E$8:$E$1142,A142)","v":0},{"$error":"#DIV/0!"}]
["TELEVISOR",{"$f":"COUNTIFS(REGISTRO!$E$8:$E$1142,A143)","v":0},{"$error":"#DIV/0!"}]
["TIMBRES",{"$f":"COUNTIFS(REGISTRO!$E$8:$E$1142,A144)","v":0},{"$error":"#DIV/0!"}]
["TONER",{"$f":"COUNTIFS(REGISTRO!$E$8:$E$1142,A145)","v":0},{"$error":"#DIV/0!"}]
["TRANSFUSIÓN",{"$f":"COUNTIFS(REGISTRO!$E$8:$E$1142,A146)","v":0},{"$error":"#DIV/0!"}]
["UCI-1",{"$f":"COUNTIFS(REGISTRO!$E$8:$E$1142,A147)","v":0},{"$error":"#DIV/0!"}]
["UCI-2",{"$f":"COUNTIFS(REGISTRO!$E$8:$E$1142,A148)","v":0},{"$error":"#DIV/0!"}]
["UCI-3",{"$f":"COUNTIFS(REGISTRO!$E$8:$E$1142,A149)","v":0},{"$error":"#DIV/0!"}]
["UCI-4",{"$f":"COUNTIFS(REGISTRO!$E$8:$E$1142,A150)","v":0},{"$error":"#DIV/0!"}]
["UPS",{"$f":"COUNTIFS(REGISTRO!$E$8:$E$1142,A151)","v":0},{"$error":"#DIV/0!"}]
["TOTAL",{"$f":"SUM(B5:B151)","v":0},{"$f":"SUM(C5:C151)","v":{"$error":"#DIV/0!"}}]

{"sheet":"ESTADISTICAS4","index":4,"n_rows":245,"n_cols":3,"rows_kept":245,"cut":false,"hidden":false,"merged":[]}
["NOMBRE","TOTAL INCIDENTES MES DE ABRIL","PORCENTAJE INCIDENTES MES DE ABRIL"]
["ÁREA ADMINISTRATIVA",{"$f":"COUNTIFS(REGISTRO!$D$8:$D$1142,A2)","v":0},{"$f":"B2/$B$245","v":{"$error":"#DIV/0!"}}]
["Arias Esguerra Carlos Ezequiel",{"$f":"COUNTIFS(REGISTRO!$D$8:$D$1142,A3)","v":0},{"$error":"#DIV/0!"}]
["Arias sanchez Francisco Alejandro ",{"$f":"COUNTIFS(REGISTRO!$D$8:$D$1142,A4)","v":0},{"$error":"#DIV/0!"}]
["Arias Villa Luz Helena",{"$f":"COUNTIFS(REGISTRO!$D$8:$D$1142,A5)","v":0},{"$error":"#DIV/0!"}]
["Avella Zuluaga Luisa Fernanda",{"$f":"COUNTIFS(REGISTRO!$D$8:$D$1142,A6)","v":0},{"$error":"#DIV/0!"}]
["Barrero Angela Maryury",{"$f":"COUNTIFS(REGISTRO!$D$8:$D$1142,A7)","v":0},{"$error":"#DIV/0!"}]
["Bedoya Ramirez Paula Andrea",{"$f":"COUNTIFS(REGISTRO!$D$8:$D$1142,A8)","v":0},{"$error":"#DIV/0!"}]
["Bermudez Zuleta Jorge Hernan",{"$f":"COUNTIFS(REGISTRO!$D$8:$D$1142,A9)","v":0},{"$error":"#DIV/0!"}]
["Caicedo Jimenez Carol Viviana",{"$f":"COUNTIFS(REGISTRO!$D$8:$D$1142,A10)","v":0},{"$error":"#DIV/0!"}]
["Calle Lasso Monica Johana",{"$f":"COUNTIFS(REGISTRO!$D$8:$D$1142,A11)","v":0},{"$error":"#DIV/0!"}]
["Cañaveral Florez Lady Paola ",{"$f":"COUNTIFS(REGISTRO!$D$8:$D$1142,A12)","v":0},{"$error":"#DIV/0!"}]
["Cardona Benitez Gloria Nancy",{"$f":"COUNTIFS(REGISTRO!$D$8:$D$1142,A13)","v":0},{"$error":"#DIV/0!"}]
["Estrada Fernandez Jorge Ivan",{"$f":"COUNTIFS(REGISTRO!$D$8:$D$1142,A14)","v":0},{"$error":"#DIV/0!"}]
["Franco Bedoya Luisa Fernanda",{"$f":"COUNTIFS(REGISTRO!$D$8:$D$1142,A15)","v":0},{"$error":"#DIV/0!"}]
["Garcia Correa Claudia Milena ",{"$f":"COUNTIFS(REGISTRO!$D$8:$D$1142,A16)","v":0},{"$error":"#DIV/0!"}]
["Giraldo Jaramillo Marcela",{"$f":"COUNTIFS(REGISTRO!$D$8:$D$1142,A17)","v":0},{"$error":"#DIV/0!"}]
["Giraldo Tamayo Diana Patricia ",{"$f":"COUNTIFS(REGISTRO!$D$8:$D$1142,A18)","v":0},{"$error":"#DIV/0!"}]
["Gomez johana",{"$f":"COUNTIFS(REGISTRO!$D$8:$D$1142,A19)","v":0},{"$error":"#DIV/0!"}]
["Gonzalez montes Juan Andres",{"$f":"COUNTIFS(REGISTRO!$D$8:$D$1142,A20)","v":0},{"$error":"#DIV/0!"}]
["Gonzalez Montoya Jairo",{"$f":"COUNTIFS(REGISTRO!$D$8:$D$1142,A21)","v":0},{"$error":"#DIV/0!"}]
["Gutierrez  Salazar Lina Paola ",{"$f":"COUNTIFS(REGISTRO!$D$8:$D$1142,A22)","v":0},{"$error":"#DIV/0!"}]
["Herrera Hernandez Yuly",{"$f":"COUNTIFS(REGISTRO!$D$8:$D$1142,A23)","v":0},{"$error":"#DIV/0!"}]
["Holguin Galeano Daniela",{"$f":"COUNTIFS(REGISTRO!$D$8:$D$1142,A24)","v":0},{"$error":"#DIV/0!"}]
["Jaramillo Gutierrez Miryam",{"$f":"COUNTIFS(REGISTRO!$D$8:$D$1142,A25)","v":0},{"$error":"#DIV/0!"}]
["Ladino Ladino Juan David",{"$f":"COUNTIFS(REGISTRO!$D$8:$D$1142,A26)","v":0},{"$error":"#DIV/0!"}]
["Lopez Jimenez Diego Alexander ",{"$f":"COUNTIFS(REGISTRO!$D$8:$D$1142,A27)","v":0},{"$error":"#DIV/0!"}]
["Lopez Sandra Milena",{"$f":"COUNTIFS(REGISTRO!$D$8:$D$1142,A28)","v":0},{"$error":"#DIV/0!"}]
["Marín Gomez Greicy Joanna ",{"$f":"COUNTIFS(REGISTRO!$D$8:$D$1142,A29)","v":0},{"$error":"#DIV/0!"}]
["Marín Valentina",{"$f":"COUNTIFS(REGISTRO!$D$8:$D$1142,A30)","v":0},{"$error":"#DIV/0!"}]
["Marulanda Salazar Luisa Fernanda",{"$f":"COUNTIFS(REGISTRO!$D$8:$D$1142,A31)","v":0},{"$error":"#DIV/0!"}]
["Muñoz Gonzalez Carlos Augusto",{"$f":"COUNTIFS(REGISTRO!$D$8:$D$1142,A32)","v":0},{"$error":"#DIV/0!"}]
["Orozco Sebastian",{"$f":"COUNTIFS(REGISTRO!$D$8:$D$1142,A33)","v":0},{"$error":"#DIV/0!"}]
["Peláez Monroy Laura Marcela",{"$f":"COUNTIFS(REGISTRO!$D$8:$D$1142,A34)","v":0},{"$error":"#DIV/0!"}]
["Peña Maryi",{"$f":"COUNTIFS(REGISTRO!$D$8:$D$1142,A35)","v":0},{"$error":"#DIV/0!"}]
["Perez Bolaños Carolina",{"$f":"COUNTIFS(REGISTRO!$D$8:$D$1142,A36)","v":0},{"$error":"#DIV/0!"}]
["Quiroz Barreto Nataly",{"$f":"COUNTIFS(REGISTRO!$D$8:$D$1142,A37)","v":0},{"$error":"#DIV/0!"}]
["Restrepo Holguin Luis Alberto",{"$f":"COUNTIFS(REGISTRO!$D$8:$D$1142,A38)","v":0},{"$error":"#DIV/0!"}]
["Restrepo Angela",{"$f":"COUNTIFS(REGISTRO!$D$8:$D$1142,A39)","v":0},{"$error":"#DIV/0!"}]
["Rios Duque Nathaly",{"$f":"COUNTIFS(REGISTRO!$D$8:$D$1142,A40)","v":0},{"$error":"#DIV/0!"}]
["Rojo Posada Maria romelia",{"$f":"COUNTIFS(REGISTRO!$D$8:$D$1142,A41)","v":0},{"$error":"#DIV/0!"}]
["Rubiano Guerrero Jhilber Julián ",{"$f":"COUNTIFS(REGISTRO!$D$8:$D$1142,A42)","v":0},{"$error":"#DIV/0!"}]
["Ruiz Cardona Banyanny",{"$f":"COUNTIFS(REGISTRO!$D$8:$D$1142,A43)","v":0},{"$error":"#DIV/0!"}]
["Serna Jaramillo Kerly Juliana",{"$f":"COUNTIFS(REGISTRO!$D$8:$D$1142,A44)","v":0},{"$error":"#DIV/0!"}]
["Suarez Rojas Yessica",{"$f":"COUNTIFS(REGISTRO!$D$8:$D$1142,A45)","v":0},{"$error":"#DIV/0!"}]
["Vargas Pulido Maria Fernanda",{"$f":"COUNTIFS(REGISTRO!$D$8:$D$1142,A46)","v":0},{"$error":"#DIV/0!"}]
["Zapata Quintero Yenifer",{"$f":"COUNTIFS(REGISTRO!$D$8:$D$1142,A47)","v":0},{"$error":"#DIV/0!"}]
["Zapata Suaza luz Omaira",{"$f":"COUNTIFS(REGISTRO!$D$8:$D$1142,A48)","v":0},{"$error":"#DIV/0!"}]
["PRACTICANTES SENA",{"$f":"COUNTIFS(REGISTRO!$D$8:$D$1142,A49)","v":0},{"$error":"#DIV/0!"}]
["Cano Isabel Cristina",{"$f":"COUNTIFS(REGISTRO!$D$8:$D$1142,A50)","v":0},{"$error":"#DIV/0!"}]
["Cifuentes Maria Alejandra",{"$f":"COUNTIFS(REGISTRO!$D$8:$D$1142,A51)","v":0},{"$error":"#DIV/0!"}]
["ENFERMERAS",{"$f":"COUNTIFS(REGISTRO!$D$8:$D$1142,A52)","v":0},{"$error":"#DIV/0!"}]
["Aguirre Velasquez Yuly Paulin",{"$f":"COUNTIFS(REGISTRO!$D$8:$D$1142,A53)","v":0},{"$error":"#DIV/0!"}]
["Aguirre Paque Carmen Yineth",{"$f":"COUNTIFS(REGISTRO!$D$8:$D$1142,A54)","v":0},{"$error":"#DIV/0!"}]
["Arango Hernandez Diana Ximena",{"$f":"COUNTIFS(REGISTRO!$D$8:$D$1142,A55)","v":0},{"$error":"#DIV/0!"}]
["Arcila Gonzalez Karen Sofia",{"$f":"COUNTIFS(REGISTRO!$D$8:$D$1142,A56)","v":0},{"$error":"#DIV/0!"}]
["Barberi Gonzalez Laura Marcela",{"$f":"COUNTIFS(REGISTRO!$D$8:$D$1142,A57)","v":0},{"$error":"#DIV/0!"}]
["Correa Henao Diana Marcela",{"$f":"COUNTIFS(REGISTRO!$D$8:$D$1142,A58)","v":0},{"$error":"#DIV/0!"}]
["Dussan Vivian Andrea",{"$f":"COUNTIFS(REGISTRO!$D$8:$D$1142,A59)","v":0},{"$error":"#DIV/0!"}]
["Garcia Arias Dignory",{"$f":"COUNTIFS(REGISTRO!$D$8:$D$1142,A60)","v":0},{"$error":"#DIV/0!"}]
["Garcia Erika",{"$f":"COUNTIFS(REGISTRO!$D$8:$D$1142,A61)","v":0},{"$error":"#DIV/0!"}]
["Libreros Cardona Lina Marcela",{"$f":"COUNTIFS(REGISTRO!$D$8:$D$1142,A62)","v":0},{"$error":"#DIV/0!"}]
["Lopez Alvarez Martha Lorena",{"$f":"COUNTIFS(REGISTRO!$D$8:$D$1142,A63)","v":0},{"$error":"#DIV/0!"}]
["Moreno Ortega Sindy Tatiana",{"$f":"COUNTIFS(REGISTRO!$D$8:$D$1142,A64)","v":0},{"$error":"#DIV/0!"}]
["Nieto Barreto Monica ",{"$f":"COUNTIFS(REGISTRO!$D$8:$D$1142,A65)","v":0},{"$error":"#DIV/0!"}]
["Ramirez Múnera Luz Nancy",{"$f":"COUNTIFS(REGISTRO!$D$8:$D$1142,A66)","v":0},{"$f":"B66/$B$245","v":{"$error":"#DIV/0!"}}]
["Rios Rotavista Paola Andrea",{"$f":"COUNTIFS(REGISTRO!$D$8:$D$1142,A67)","v":0},{"$error":"#DIV/0!"}]
["Sanchez Oliveros Luz Carime",{"$f":"COUNTIFS(REGISTRO!$D$8:$D$1142,A68)","v":0},{"$error":"#DIV/0!"}]
["Suarez Soto Johana Andrea",{"$f":"COUNTIFS(REGISTRO!$D$8:$D$1142,A69)","v":0},{"$error":"#DIV/0!"}]
["Tejada Mejia Alejandra María ",{"$f":"COUNTIFS(REGISTRO!$D$8:$D$1142,A70)","v":0},{"$error":"#DIV/0!"}]
["Velez Sanchez Luz Yaned",{"$f":"COUNTIFS(REGISTRO!$D$8:$D$1142,A71)","v":0},{"$error":"#DIV/0!"}]
["Vargas Gil Luz Marina",{"$f":"COUNTIFS(REGISTRO!$D$8:$D$1142,A72)","v":0},{"$error":"#DIV/0!"}]
["AUXILIARES DE ENFERMERIA",{"$f":"COUNTIFS(REGISTRO!$D$8:$D$1142,A73)","v":0},{"$error":"#DIV/0!"}]
["Acosta Acosta Liceth Eliana",{"$f":"COUNTIFS(REGISTRO!$D$8:$D$1142,A74)","v":0},{"$error":"#DIV/0!"}]
["Alvarez Quintero Adriana ",{"$f":"COUNTIFS(REGISTRO!$D$8:$D$1142,A75)","v":0},{"$error":"#DIV/0!"}]
["Bedoya Nataly",{"$f":"COUNTIFS(REGISTRO!$D$8:$D$1142,A76)","v":0},{"$error":"#DIV/0!"}]
["Cañas Bedoya Maria Elena",{"$f":"COUNTIFS(REGISTRO!$D$8:$D$1142,A77)","v":0},{"$error":"#DIV/0!"}]
["Cardenas Henao Elizabeth ",{"$f":"COUNTIFS(REGISTRO!$D$8:$D$1142,A78)","v":0},{"$error":"#DIV/0!"}]
["Castrillon Palacio Adriana Maria",{"$f":"COUNTIFS(REGISTRO!$D$8:$D$1142,A79)","v":0},{"$error":"#DIV/0!"}]
["Cifuentes Garcia Diana Carolina ",{"$f":"COUNTIFS(REGISTRO!$D$8:$D$1142,A80)","v":0},{"$error":"#DIV/0!"}]
["Cruz Trujillo Erika Alejandra",{"$f":"COUNTIFS(REGISTRO!$D$8:$D$1142,A81)","v":0},{"$error":"#DIV/0!"}]
["Duque Velez Luz Miriam ",{"$f":"COUNTIFS(REGISTRO!$D$8:$D$1142,A82)","v":0},{"$error":"#DIV/0!"}]
["Florez Calvo Heriberto",{"$f":"COUNTIFS(REGISTRO!$D$8:$D$1142,A83)","v":0},{"$error":"#DIV/0!"}]
["García Tusarma Liliana Yinet",{"$f":"COUNTIFS(REGISTRO!$D$8:$D$1142,A84)","v":0},{"$error":"#DIV/0!"}]
["Giraldo taborda  Gloria Esmeralda ",{"$f":"COUNTIFS(REGISTRO!$D$8:$D$1142,A85)","v":0},{"$error":"#DIV/0!"}]
["Gonzalez Sanchez Maria Ludivia",{"$f":"COUNTIFS(REGISTRO!$D$8:$D$1142,A86)","v":0},{"$error":"#DIV/0!"}]
["Hernandez Tamayo Gloria Liliana ",{"$f":"COUNTIFS(REGISTRO!$D$8:$D$1142,A87)","v":0},{"$error":"#DIV/0!"}]
["Londoño Alzate Beatriz Eugenia",{"$f":"COUNTIFS(REGISTRO!$D$8:$D$1142,A88)","v":0},{"$error":"#DIV/0!"}]
["Marín Franco Beatriz Elena",{"$f":"COUNTIFS(REGISTRO!$D$8:$D$1142,A89)","v":0},{"$error":"#DIV/0!"}]
["Mesa Chalarca You Luciano",{"$f":"COUNTIFS(REGISTRO!$D$8:$D$1142,A90)","v":0},{"$error":"#DIV/0!"}]
["Molina Rengifo Adriana",{"$f":"COUNTIFS(REGISTRO!$D$8:$D$1142,A91)","v":0},{"$error":"#DIV/0!"}]
["Moreno Zapata Yicella Andrea",{"$f":"COUNTIFS(REGISTRO!$D$8:$D$1142,A92)","v":0},{"$error":"#DIV/0!"}]
["Osorio Londoño Beatriz Elena",{"$f":"COUNTIFS(REGISTRO!$D$8:$D$1142,A93)","v":0},{"$error":"#DIV/0!"}]
["Ospina Garcia Ana María",{"$f":"COUNTIFS(REGISTRO!$D$8:$D$1142,A94)","v":0},{"$error":"#DIV/0!"}]
["Pabón López Luz Elena",{"$f":"COUNTIFS(REGISTRO!$D$8:$D$1142,A95)","v":0},{"$error":"#DIV/0!"}]
["Pantoja Carolina",{"$f":"COUNTIFS(REGISTRO!$D$8:$D$1142,A96)","v":0},{"$error":"#DIV/0!"}]
["Peláez Correa Juan Carlos",{"$f":"COUNTIFS(REGISTRO!$D$8:$D$1142,A97)","v":0},{"$error":"#DIV/0!"}]
["Perdomo Diana Carolina",{"$f":"COUNTIFS(REGISTRO!$D$8:$D$1142,A98)","v":0},{"$error":"#DIV/0!"}]
["Piedrahita Gonzalez Luz Andrea",{"$f":"COUNTIFS(REGISTRO!$D$8:$D$1142,A99)","v":0},{"$error":"#DIV/0!"}]
["Posada Lopez Sol Angel",{"$f":"COUNTIFS(REGISTRO!$D$8:$D$1142,A100)","v":0},{"$error":"#DIV/0!"}]
["Quebrada Acevedo Gloria Ines",{"$f":"COUNTIFS(REGISTRO!$D$8:$D$1142,A101)","v":0},{"$error":"#DIV/0!"}]
["Ramirez Quintero Laura Daniela ",{"$f":"COUNTIFS(REGISTRO!$D$8:$D$1142,A102)","v":0},{"$error":"#DIV/0!"}]
["Rivera Cañas Karen",{"$f":"COUNTIFS(REGISTRO!$D$8:$D$1142,A103)","v":0},{"$error":"#DIV/0!"}]
["Sanchez Ortiz Diana Raquel ",{"$f":"COUNTIFS(REGISTRO!$D$8:$D$1142,A104)","v":0},{"$error":"#DIV/0!"}]
["Santa Franco Diego Alexander",{"$f":"COUNTIFS(REGISTRO!$D$8:$D$1142,A105)","v":0},{"$error":"#DIV/0!"}]
["Santa Sanchez Daniela",{"$f":"COUNTIFS(REGISTRO!$D$8:$D$1142,A106)","v":0},{"$error":"#DIV/0!"}]
["Sepulveda Montoya Laura Valentina",{"$f":"COUNTIFS(REGISTRO!$D$8:$D$1142,A107)","v":0},{"$error":"#DIV/0!"}]
["Taborda López Nora Julieth",{"$f":"COUNTIFS(REGISTRO!$D$8:$D$1142,A108)","v":0},{"$error":"#DIV/0!"}]
["Taborda Sepulveda Paola Andrea",{"$f":"COUNTIFS(REGISTRO!$D$8:$D$1142,A109)","v":0},{"$error":"#DIV/0!"}]
["Trujillo Gomez Yudy Alexandra ",{"$f":"COUNTIFS(REGISTRO!$D$8:$D$1142,A110)","v":0},{"$error":"#DIV/0!"}]
["Valencia Duque Dora Nancy",{"$f":"COUNTIFS(REGISTRO!$D$8:$D$1142,A111)","v":0},{"$error":"#DIV/0!"}]
["Zapata Gonzalez Gyna Marcela",{"$f":"COUNTIFS(REGISTRO!$D$8:$D$1142,A112)","v":0},{"$error":"#DIV/0!"}]
["TERAPIA RESPIRATORIA",{"$f":"COUNTIFS(REGISTRO!$D$8:$D$1142,A113)","v":0},{"$error":"#DIV/0!"}]
["Botero Ceballos Luz Elena",{"$f":"COUNTIFS(REGISTRO!$D$8:$D$1142,A114)","v":0},{"$error":"#DIV/0!"}]
["España Vasquez Jackeline",{"$f":"COUNTIFS(REGISTRO!$D$8:$D$1142,A115)","v":0},{"$error":"#DIV/0!"}]
["Garcia Cardona Monica",{"$f":"COUNTIFS(REGISTRO!$D$8:$D$1142,A116)","v":0},{"$error":"#DIV/0!"}]
["Molina Becerra Luz Adriana",{"$f":"COUNTIFS(REGISTRO!$D$8:$D$1142,A117)","v":0},{"$error":"#DIV/0!"}]
["Ramirez Correa Claudia Andrea",{"$f":"COUNTIFS(REGISTRO!$D$8:$D$1142,A118)","v":0},{"$error":"#DIV/0!"}]
["INSTRUMENTADORES",{"$f":"COUNTIFS(REGISTRO!$D$8:$D$1142,A119)","v":0},{"$error":"#DIV/0!"}]
["Calderón Tabares Ingrid Marcela ",{"$f":"COUNTIFS(REGISTRO!$D$8:$D$1142,A120)","v":0},{"$error":"#DIV/0!"}]
["Carreño Muñoz Durley Jhobana",{"$f":"COUNTIFS(REGISTRO!$D$8:$D$1142,A121)","v":0},{"$error":"#DIV/0!"}]
["Gonzalez Alzate Andres David ",{"$f":"COUNTIFS(REGISTRO!$D$8:$D$1142,A122)","v":0},{"$error":"#DIV/0!"}]
["Muñoz Agudelo Edier",{"$f":"COUNTIFS(REGISTRO!$D$8:$D$1142,A123)","v":0},{"$error":"#DIV/0!"}]
["ESTERILIZACIÓN",{"$f":"COUNTIFS(REGISTRO!$D$8:$D$1142,A124)","v":0},{"$error":"#DIV/0!"}]
["Gutierrez Ceballos Kelly Juranny",{"$f":"COUNTIFS(REGISTRO!$D$8:$D$1142,A125)","v":0},{"$error":"#DIV/0!"}]
["Fernandez Echeverry Diana Patricia ",{"$f":"COUNTIFS(REGISTRO!$D$8:$D$1142,A126)","v":0},{"$error":"#DIV/0!"}]
["FARMACIA",{"$f":"COUNTIFS(REGISTRO!$D$8:$D$1142,A127)","v":0},{"$error":"#DIV/0!"}]
["Bueno Brito Cesar Augusto",{"$f":"COUNTIFS(REGISTRO!$D$8:$D$1142,A128)","v":0},{"$error":"#DIV/0!"}]
["Brito Correa Alejandra",{"$f":"COUNTIFS(REGISTRO!$D$8:$D$1142,A129)","v":0},{"$error":"#DIV/0!"}]
["Giraldo  Muñoz Eliana Ismary",{"$f":"COUNTIFS(REGISTRO!$D$8:$D$1142,A130)","v":0},{"$f":"B130/$B$245","v":{"$error":"#DIV/0!"}}]
["Gutierrez Naranjo Carlos Adrian",{"$f":"COUNTIFS(REGISTRO!$D$8:$D$1142,A131)","v":0},{"$error":"#DIV/0!"}]
["Marin Marin Luis Javier",{"$f":"COUNTIFS(REGISTRO!$D$8:$D$1142,A132)","v":0},{"$error":"#DIV/0!"}]
["Marín Ortiz Angela Patricia ",{"$f":"COUNTIFS(REGISTRO!$D$8:$D$1142,A133)","v":0},{"$error":"#DIV/0!"}]
["Montoya López Jennifer",{"$f":"COUNTIFS(REGISTRO!$D$8:$D$1142,A134)","v":0},{"$error":"#DIV/0!"}]
["Ruiz Estrada Leonardo Fabio ",{"$f":"COUNTIFS(REGISTRO!$D$8:$D$1142,A135)","v":0},{"$error":"#DIV/0!"}]
["Vara Arias Luisa Fernanda",{"$f":"COUNTIFS(REGISTRO!$D$8:$D$1142,A136)","v":0},{"$error":"#DIV/0!"}]
["BACTERILOGOS",{"$f":"COUNTIFS(REGISTRO!$D$8:$D$1142,A137)","v":0},{"$error":"#DIV/0!"}]
["Correa Palacio Nora Vanessa",{"$f":"COUNTIFS(REGISTRO!$D$8:$D$1142,A138)","v":0},{"$error":"#DIV/0!"}]
["Chacon Dorado Elizabeth",{"$f":"COUNTIFS(REGISTRO!$D$8:$D$1142,A139)","v":0},{"$error":"#DIV/0!"}]
["Galeano Carrillo Cindy Alana",{"$f":"COUNTIFS(REGISTRO!$D$8:$D$1142,A140)","v":0},{"$error":"#DIV/0!"}]
["MANTENIMIENTO",{"$f":"COUNTIFS(REGISTRO!$D$8:$D$1142,A141)","v":0},{"$error":"#DIV/0!"}]
["Arboleda Calle Cristian Fabian",{"$f":"COUNTIFS(REGISTRO!$D$8:$D$1142,A142)","v":0},{"$error":"#DIV/0!"}]
["Silva Duque Juan Miguel ",{"$f":"COUNTIFS(REGISTRO!$D$8:$D$1142,A143)","v":0},{"$error":"#DIV/0!"}]
["Villamil Betancur Jorge Albeiro",{"$f":"COUNTIFS(REGISTRO!$D$8:$D$1142,A144)","v":0},{"$error":"#DIV/0!"}]
["SISTEMAS",{"$f":"COUNTIFS(REGISTRO!$D$8:$D$1142,A145)","v":0},{"$error":"#DIV/0!"}]
["Castro Florez Cesar Eduardo",{"$f":"COUNTIFS(REGISTRO!$D$8:$D$1142,A146)","v":0},{"$error":"#DIV/0!"}]
["Vega Arias Yefferson",{"$f":"COUNTIFS(REGISTRO!$D$8:$D$1142,A147)","v":0},{"$error":"#DIV/0!"}]
["SERVICIOS GENERALES",{"$f":"COUNTIFS(REGISTRO!$D$8:$D$1142,A148)","v":0},{"$error":"#DIV/0!"}]
["Castro Buritica Gloria Ines",{"$f":"COUNTIFS(REGISTRO!$D$8:$D$1142,A149)","v":0},{"$error":"#DIV/0!"}]
["Cuervo Molina Lina María ",{"$f":"COUNTIFS(REGISTRO!$D$8:$D$1142,A150)","v":0},{"$error":"#DIV/0!"}]
["Gomez Suarez Patricia ",{"$f":"COUNTIFS(REGISTRO!$D$8:$D$1142,A151)","v":0},{"$error":"#DIV/0!"}]
["Pulgarin Vargas Luz Marina ",{"$f":"COUNTIFS(REGISTRO!$D$8:$D$1142,A152)","v":0},{"$error":"#DIV/0!"}]
["Rodriguez Sanchez Luz Mary",{"$f":"COUNTIFS(REGISTRO!$D$8:$D$1142,A153)","v":0},{"$error":"#DIV/0!"}]
["Vela Estrada Maria Lorena",{"$f":"COUNTIFS(REGISTRO!$D$8:$D$1142,A154)","v":0},{"$error":"#DIV/0!"}]
["Velasquez Mejia Blanca Ruby",{"$f":"COUNTIFS(REGISTRO!$D$8:$D$1142,A155)","v":0},{"$error":"#DIV/0!"}]
["Velasquez Valencia Sandra Milena ",{"$f":"COUNTIFS(REGISTRO!$D$8:$D$1142,A156)","v":0},{"$error":"#DIV/0!"}]
["Villalobos Posada Lady Yohana",{"$f":"COUNTIFS(REGISTRO!$D$8:$D$1142,A157)","v":0},{"$error":"#DIV/0!"}]
["ORIENTADORES",{"$f":"COUNTIFS(REGISTRO!$D$8:$D$1142,A158)","v":0},{"$error":"#DIV/0!"}]
["Bueno Blandón Hector Fabio ",{"$f":"COUNTIFS(REGISTRO!$D$8:$D$1142,A159)","v":0},{"$error":"#DIV/0!"}]
["Builes Alvarez Ivan Dario",{"$f":"COUNTIFS(REGISTRO!$D$8:$D$1142,A160)","v":0},{"$error":"#DIV/0!"}]
["García García Hernan",{"$f":"COUNTIFS(REGISTRO!$D$8:$D$1142,A161)","v":0},{"$error":"#DIV/0!"}]
["Gomez Virgen Ivan Dario",{"$f":"COUNTIFS(REGISTRO!$D$8:$D$1142,A162)","v":0},{"$error":"#DIV/0!"}]
["Guerrero Saavedra Yuliana Andrea",{"$f":"COUNTIFS(REGISTRO!$D$8:$D$1142,A163)","v":0},{"$error":"#DIV/0!"}]
["Londoño Ramirez Edinson",{"$f":"COUNTIFS(REGISTRO!$D$8:$D$1142,A164)","v":0},{"$error":"#DIV/0!"}]
["Lopez Jhon Hover",{"$f":"COUNTIFS(REGISTRO!$D$8:$D$1142,A165)","v":0},{"$error":"#DIV/0!"}]
["Salgado Marín Gerardo Antonio",{"$f":"COUNTIFS(REGISTRO!$D$8:$D$1142,A166)","v":0},{"$error":"#DIV/0!"}]
["ÁREA DE BIOTECNOLOGÍA",{"$f":"COUNTIFS(REGISTRO!$D$8:$D$1142,A167)","v":0},{"$error":"#DIV/0!"}]
["Arias ramirez Ramon yolian",{"$f":"COUNTIFS(REGISTRO!$D$8:$D$1142,A168)","v":0},{"$error":"#DIV/0!"}]
["Salazar Juan Leonardo",{"$f":"COUNTIFS(REGISTRO!$D$8:$D$1142,A169)","v":0},{"$error":"#DIV/0!"}]
["LABORATORIO",{"$f":"COUNTIFS(REGISTRO!$D$8:$D$1142,A170)","v":0},{"$error":"#DIV/0!"}]
["Marin Gomez Liliana",{"$f":"COUNTIFS(REGISTRO!$D$8:$D$1142,A171)","v":0},{"$error":"#DIV/0!"}]
["Carrillo Rozo Adriana",{"$f":"COUNTIFS(REGISTRO!$D$8:$D$1142,A172)","v":0},{"$error":"#DIV/0!"}]
["Bermudez Bonilla Claudia",{"$f":"COUNTIFS(REGISTRO!$D$8:$D$1142,A173)","v":0},{"$error":"#DIV/0!"}]
["MEDICOS GENERALES - UCI",{"$f":"COUNTIFS(REGISTRO!$D$8:$D$1142,A174)","v":0},{"$error":"#DIV/0!"}]
["Ardila Otero Álvaro ",{"$f":"COUNTIFS(REGISTRO!$D$8:$D$1142,A175)","v":0},{"$error":"#DIV/0!"}]
["Aristizabal Salazar Raul Eduardo ",{"$f":"COUNTIFS(REGISTRO!$D$8:$D$1142,A176)","v":0},{"$error":"#DIV/0!"}]
["Ariza Londoño Jorge Ivan",{"$f":"COUNTIFS(REGISTRO!$D$8:$D$1142,A177)","v":0},{"$error":"#DIV/0!"}]
["Avendaño Pelaez Eliana Maria",{"$f":"COUNTIFS(REGISTRO!$D$8:$D$1142,A178)","v":0},{"$error":"#DIV/0!"}]
["Blandón Peralta Rubén Dario ",{"$f":"COUNTIFS(REGISTRO!$D$8:$D$1142,A179)","v":0},{"$error":"#DIV/0!"}]
["Cabrera Eraso Juan Pablo ",{"$f":"COUNTIFS(REGISTRO!$D$8:$D$1142,A180)","v":0},{"$error":"#DIV/0!"}]
["Castillo Herrera Jorge Hernan",{"$f":"COUNTIFS(REGISTRO!$D$8:$D$1142,A181)","v":0},{"$error":"#DIV/0!"}]
["Garcia Hernandez Hernando ",{"$f":"COUNTIFS(REGISTRO!$D$8:$D$1142,A182)","v":0},{"$error":"#DIV/0!"}]
["Echeverry Nestor",{"$f":"COUNTIFS(REGISTRO!$D$8:$D$1142,A183)","v":0},{"$error":"#DIV/0!"}]
["Fernandez Cordobes Carlos Hernan",{"$f":"COUNTIFS(REGISTRO!$D$8:$D$1142,A184)","v":0},{"$error":"#DIV/0!"}]
["López Gálvez Sandra Lorena",{"$f":"COUNTIFS(REGISTRO!$D$8:$D$1142,A185)","v":0},{"$error":"#DIV/0!"}]
["Mejia Atehortua Grabriel Augusto",{"$f":"COUNTIFS(REGISTRO!$D$8:$D$1142,A186)","v":0},{"$error":"#DIV/0!"}]
["Mezquita Ortiz Yolanda",{"$f":"COUNTIFS(REGISTRO!$D$8:$D$1142,A187)","v":0},{"$error":"#DIV/0!"}]
["Morales Gomez Ricardo Arturo",{"$f":"COUNTIFS(REGISTRO!$D$8:$D$1142,A188)","v":0},{"$error":"#DIV/0!"}]
["Ramos Gonzalez David Antonio",{"$f":"COUNTIFS(REGISTRO!$D$8:$D$1142,A189)","v":0},{"$error":"#DIV/0!"}]
["Tirado Chujfi Andres",{"$f":"COUNTIFS(REGISTRO!$D$8:$D$1142,A190)","v":0},{"$error":"#DIV/0!"}]
["ESPECIALISTAS",{"$f":"COUNTIFS(REGISTRO!$D$8:$D$1142,A191)","v":0},{"$error":"#DIV/0!"}]
["Agudelo Garcia Paula Andrea ",{"$f":"COUNTIFS(REGISTRO!$D$8:$D$1142,A192)","v":0},{"$error":"#DIV/0!"}]
["Arcila Alzate Jorge Alberto ",{"$f":"COUNTIFS(REGISTRO!$D$8:$D$1142,A193)","v":0},{"$error":"#DIV/0!"}]
["Arellano Sanchez Gerardo Arturo",{"$f":"COUNTIFS(REGISTRO!$D$8:$D$1142,A194)","v":0},{"$f":"B194/$B$245","v":{"$error":"#DIV/0!"}}]
["Burgos Durango Carlos Mauricio",{"$f":"COUNTIFS(REGISTRO!$D$8:$D$1142,A195)","v":0},{"$error":"#DIV/0!"}]
["Bretón Jaime Alexander ",{"$f":"COUNTIFS(REGISTRO!$D$8:$D$1142,A196)","v":0},{"$error":"#DIV/0!"}]
["Calle Alejandro",{"$f":"COUNTIFS(REGISTRO!$D$8:$D$1142,A197)","v":0},{"$error":"#DIV/0!"}]
["Delgado Castrillón Edgar de Jesus ",{"$f":"COUNTIFS(REGISTRO!$D$8:$D$1142,A198)","v":0},{"$error":"#DIV/0!"}]
["Garcia Acosta Ramiro Alonso ",{"$f":"COUNTIFS(REGISTRO!$D$8:$D$1142,A199)","v":0},{"$error":"#DIV/0!"}]
["Garcia Amaris Rafael Alberto",{"$f":"COUNTIFS(REGISTRO!$D$8:$D$1142,A200)","v":0},{"$error":"#DIV/0!"}]
["Gonzalez Urrea Mauricio ",{"$f":"COUNTIFS(REGISTRO!$D$8:$D$1142,A201)","v":0},{"$error":"#DIV/0!"}]
["Guerrero Molina Hernan Guillermo",{"$f":"COUNTIFS(REGISTRO!$D$8:$D$1142,A202)","v":0},{"$error":"#DIV/0!"}]
["Henao Flores Humberto",{"$f":"COUNTIFS(REGISTRO!$D$8:$D$1142,A203)","v":0},{"$error":"#DIV/0!"}]
["Hinestroza Barrios Jesus Ariel",{"$f":"COUNTIFS(REGISTRO!$D$8:$D$1142,A204)","v":0},{"$error":"#DIV/0!"}]
["Isaza Vallejo Carlos Arturo ",{"$f":"COUNTIFS(REGISTRO!$D$8:$D$1142,A205)","v":0},{"$error":"#DIV/0!"}]
["Jimenez Sanz Fernando",{"$f":"COUNTIFS(REGISTRO!$D$8:$D$1142,A206)","v":0},{"$error":"#DIV/0!"}]
["Lopez Isanoa Jorge",{"$f":"COUNTIFS(REGISTRO!$D$8:$D$1142,A207)","v":0},{"$error":"#DIV/0!"}]
["Lopez Ospina Juan Diego",{"$f":"COUNTIFS(REGISTRO!$D$8:$D$1142,A208)","v":0},{"$error":"#DIV/0!"}]
["Lopez Cardona Alejandro ",{"$f":"COUNTIFS(REGISTRO!$D$8:$D$1142,A209)","v":0},{"$error":"#DIV/0!"}]
["Marin Ceron Andres",{"$f":"COUNTIFS(REGISTRO!$D$8:$D$1142,A210)","v":0},{"$error":"#DIV/0!"}]
["Marulanda Durango Lorsis Antonio",{"$f":"COUNTIFS(REGISTRO!$D$8:$D$1142,A211)","v":0},{"$error":"#DIV/0!"}]
["Mesias Carmen Leonor ",{"$f":"COUNTIFS(REGISTRO!$D$8:$D$1142,A212)","v":0},{"$error":"#DIV/0!"}]
["Millan Henao Pedro Nel ",{"$f":"COUNTIFS(REGISTRO!$D$8:$D$1142,A213)","v":0},{"$error":"#DIV/0!"}]
["Miranda Hoyos Antonio Carlos",{"$f":"COUNTIFS(REGISTRO!$D$8:$D$1142,A214)","v":0},{"$error":"#DIV/0!"}]
["Montes Diana Yazmin",{"$f":"COUNTIFS(REGISTRO!$D$8:$D$1142,A215)","v":0},{"$error":"#DIV/0!"}]
["Mosquera Valencia Tulio Hernan",{"$f":"COUNTIFS(REGISTRO!$D$8:$D$1142,A216)","v":0},{"$error":"#DIV/0!"}]
["Orozco Aldana Fernando ",{"$f":"COUNTIFS(REGISTRO!$D$8:$D$1142,A217)","v":0},{"$error":"#DIV/0!"}]
["Ortiz Carlos Alexis",{"$f":"COUNTIFS(REGISTRO!$D$8:$D$1142,A218)","v":0},{"$error":"#DIV/0!"}]
["Osorno Chica Diego Andres",{"$f":"COUNTIFS(REGISTRO!$D$8:$D$1142,A219)","v":0},{"$error":"#DIV/0!"}]
["Peralta Pineda Cesar Augusto ",{"$f":"COUNTIFS(REGISTRO!$D$8:$D$1142,A220)","v":0},{"$error":"#DIV/0!"}]
["Perdomo Alonso",{"$f":"COUNTIFS(REGISTRO!$D$8:$D$1142,A221)","v":0},{"$error":"#DIV/0!"}]
["Pinzón Gomez José Francisco",{"$f":"COUNTIFS(REGISTRO!$D$8:$D$1142,A222)","v":0},{"$error":"#DIV/0!"}]
["Ramirez Moros Hernan",{"$f":"COUNTIFS(REGISTRO!$D$8:$D$1142,A223)","v":0},{"$error":"#DIV/0!"}]
["Ramirez Palacio Jairo de Jesús",{"$f":"COUNTIFS(REGISTRO!$D$8:$D$1142,A224)","v":0},{"$error":"#DIV/0!"}]
["Rodriguez Serna Carolina",{"$f":"COUNTIFS(REGISTRO!$D$8:$D$1142,A225)","v":0},{"$error":"#DIV/0!"}]
["Rojas Puentes Juan Carlos",{"$f":"COUNTIFS(REGISTRO!$D$8:$D$1142,A226)","v":0},{"$error":"#DIV/0!"}]
["Roldan Hoyos Jose Diego",{"$f":"COUNTIFS(REGISTRO!$D$8:$D$1142,A227)","v":0},{"$error":"#DIV/0!"}]
["Ruiz Perez Julian",{"$f":"COUNTIFS(REGISTRO!$D$8:$D$1142,A228)","v":0},{"$error":"#DIV/0!"}]
["Sandoval Maria Eugenia ",{"$f":"COUNTIFS(REGISTRO!$D$8:$D$1142,A229)","v":0},{"$error":"#DIV/0!"}]
["Sanin Sanin Claudia",{"$f":"COUNTIFS(REGISTRO!$D$8:$D$1142,A230)","v":0},{"$error":"#DIV/0!"}]
["Sarmiento Jesus Antonio",{"$f":"COUNTIFS(REGISTRO!$D$8:$D$1142,A231)","v":0},{"$error":"#DIV/0!"}]
["Sierra Jorge Eduardo",{"$f":"COUNTIFS(REGISTRO!$D$8:$D$1142,A232)","v":0},{"$error":"#DIV/0!"}]
["Suarez  Henao Juan Esteban",{"$f":"COUNTIFS(REGISTRO!$D$8:$D$1142,A233)","v":0},{"$error":"#DIV/0!"}]
["Taquez Muñoz Adriana Elizabeth",{"$f":"COUNTIFS(REGISTRO!$D$8:$D$1142,A234)","v":0},{"$error":"#DIV/0!"}]
["Tejada Hoyos Jorge Darío ",{"$f":"COUNTIFS(REGISTRO!$D$8:$D$1142,A235)","v":0},{"$error":"#DIV/0!"}]
["Toro William",{"$f":"COUNTIFS(REGISTRO!$D$8:$D$1142,A236)","v":0},{"$error":"#DIV/0!"}]
["Tovar arango John Jaime ",{"$f":"COUNTIFS(REGISTRO!$D$8:$D$1142,A237)","v":0},{"$error":"#DIV/0!"}]
["Valencia Vera Johana Marcela",{"$f":"COUNTIFS(REGISTRO!$D$8:$D$1142,A238)","v":0},{"$error":"#DIV/0!"}]
["Valero Walteros Eduardo",{"$f":"COUNTIFS(REGISTRO!$D$8:$D$1142,A239)","v":0},{"$error":"#DIV/0!"}]
["Vélez Leiva Edwin Ernesto",{"$f":"COUNTIFS(REGISTRO!$D$8:$D$1142,A240)","v":0},{"$error":"#DIV/0!"}]
["Yepes Muñoz Cesar Bernardo",{"$f":"COUNTIFS(REGISTRO!$D$8:$D$1142,A241)","v":0},{"$error":"#DIV/0!"}]
["Sebastian Muñoz Duque",{"$f":"COUNTIFS(REGISTRO!$D$8:$D$1142,A242)","v":0},{"$error":"#DIV/0!"}]
["AGENTES EXTERNOS",{"$f":"COUNTIFS(REGISTRO!$D$8:$D$1142,A243)","v":0},{"$error":"#DIV/0!"}]
["RADIOLOGOS",{"$f":"COUNTIFS(REGISTRO!$D$8:$D$1142,A244)","v":0},{"$error":"#DIV/0!"}]
["TOTAL",{"$f":"SUM(B2:B244)","v":0},{"$f":"SUM(C2:C244)","v":{"$error":"#DIV/0!"}}]